Workbook

Sheet Parametros
A3: aux | C3: Año base | D3: año | E3: mes
A4: =D4&E4 -> 20201 | B4: 2020-01-01 | D4: =YEAR(B4) -> 2020 | E4: =MONTH(B4) -> 1
A5: =D5&E5 -> 20202 | B5: 2020-02-01 | D5: =YEAR(B5) -> 2020 | E5: =MONTH(B5) -> 2
A6: 20203 | B6: 2020-03-01 | D6: 2020 | E6: 3
A7: 20204 | B7: 2020-04-01 | D7: 2020 | E7: 4
A8: 20205 | B8: 2020-05-01 | D8: 2020 | E8: 5
A9: 20206 | B9: 2020-06-01 | D9: 2020 | E9: 6
A10: 20207 | B10: 2020-07-01 | D10: 2020 | E10: 7
A11: 20208 | B11: 2020-08-01 | D11: 2020 | E11: 8
A12: 20209 | B12: 2020-09-01 | C12: 1 | D12: 2020 | E12: 9
A13: 202010 | B13: 2020-10-01 | C13: 1 | D13: 2020 | E13: 10
A14: 202011 | B14: 2020-11-01 | C14: 1 | D14: 2020 | E14: 11
A15: 202012 | B15: 2020-12-01 | C15: 1 | D15: 2020 | E15: 12
A16: 20211 | B16: 2021-01-01 | C16: 1 | D16: 2021 | E16: 1
A17: 20212 | B17: 2021-02-01 | C17: 1 | D17: 2021 | E17: 2
A18: 20213 | B18: 2021-03-01 | C18: 1 | D18: 2021 | E18: 3
A19: 20214 | B19: 2021-04-01 | C19: 1 | D19: 2021 | E19: 4
A20: 20215 | B20: 2021-05-01 | C20: 1 | D20: 2021 | E20: 5
A21: 20216 | B21: 2021-06-01 | C21: 1 | D21: 2021 | E21: 6
A22: 20217 | B22: 2021-07-01 | C22: 1 | D22: 2021 | E22: 7
A23: 20218 | B23: 2021-08-01 | C23: 1 | D23: 2021 | E23: 8
A24: 20219 | B24: 2021-09-01 | D24: 2021 | E24: 9
A25: 202110 | B25: 2021-10-01 | D25: 2021 | E25: 10
A26: 202111 | B26: 2021-11-01 | D26: 2021 | E26: 11
A27: 202112 | B27: 2021-12-01 | D27: 2021 | E27: 12
A28: 20221 | B28: 2022-01-01 | D28: 2022 | E28: 1
A29: 20222 | B29: 2022-02-01 | D29: 2022 | E29: 2
A30: 20223 | B30: 2022-03-01 | D30: 2022 | E30: 3
A31: 20224 | B31: 2022-04-01 | D31: 2022 | E31: 4
A32: 20225 | B32: 2022-05-01 | D32: 2022 | E32: 5
A33: 20226 | B33: 2022-06-01 | D33: 2022 | E33: 6
A34: 20227 | B34: 2022-07-01 | D34: 2022 | E34: 7
A35: 20228 | B35: 2022-08-01 | D35: 2022 | E35: 8
A36: 20229 | B36: 2022-09-01 | D36: 2022 | E36: 9
A37: 202210 | B37: 2022-10-01 | D37: 2022 | E37: 10
A38: 202211 | B38: 2022-11-01 | D38: 2022 | E38: 11
A39: 202212 | B39: 2022-12-01 | D39: 2022 | E39: 12

Sheet Energ_operada
A3: =[1]Cuadro!A3 -> Detalles | B3: =[1]Cuadro!ED3 -> 2020-01-01 | C3: =[1]Cuadro!EE3 -> 2020-02-01 | D3: =[1]Cuadro!EF3 -> 2020-03-01 | E3: =[1]Cuadro!EG3 -> 2020-04-01 | F3: =[1]Cuadro!EH3 -> 2020-05-01 | G3: =[1]Cuadro!EI3 -> 2020-06-01 | H3: =[1]Cuadro!EJ3 -> 2020-07-01 | I3: =[1]Cuadro!EK3 -> 2020-08-01 | J3: =[1]Cuadro!EL3 -> 2020-09-01 | K3: =[1]Cuadro!EM3 -> 2020-10-01 | L3: =[1]Cuadro!EN3 -> 2020-11-01 | M3: =[1]Cuadro!EO3 -> 2020-12-01 | N3: =[1]Cuadro!EP3 -> 2021-01-01 | O3: =[1]Cuadro!EQ3 -> 2021-02-01 | P3: =[1]Cuadro!ER3 -> 2021-03-01 | Q3: =[1]Cuadro!ES3 -> 2021-04-01 | R3: =[1]Cuadro!ET3 -> 2021-05-01 | S3: =[1]Cuadro!EU3 -> 2021-06-01 | T3: =[1]Cuadro!EV3 -> 2021-07-01 | U3: =[1]Cuadro!EW3 -> 2021-08-01 | V3: =[1]Cuadro!EX3 -> 2021-09-01 | W3: =[1]Cuadro!EY3 -> 2021-10-01 | X3: =[1]Cuadro!EZ3 -> 2021-11-01 | Y3: =[1]Cuadro!FA3 -> 2021-12-01 | Z3: =[1]Cuadro!FB3 -> 2022-01-01 | AA3: =[1]Cuadro!FC3 -> 2022-02-01 | AB3: =[1]Cuadro!FD3 -> 2022-03-01 | AC3: =[1]Cuadro!FE3 -> 2022-04-01 | AD3: =[1]Cuadro!FF3 -> 2022-05-01 | AE3: =[1]Cuadro!FG3 -> 2022-06-01
A4: =[1]Cuadro!A4 -> Compra SIN | B4: =[1]Cuadro!ED4 -> 297187.434 | C4: =[1]Cuadro!EE4 -> 275202.7056 | D4: =[1]Cuadro!EF4 -> 292520.8784 | E4: =[1]Cuadro!EG4 -> 260708.935 | F4: =[1]Cuadro!EH4 -> 275905.414 | G4: =[1]Cuadro!EI4 -> 261549.1482 | H4: =[1]Cuadro!EJ4 -> 264836.6831 | I4: =[1]Cuadro!EK4 -> 266009.2302 | J4: =[1]Cuadro!EL4 -> 262998.1221 | K4: =[1]Cuadro!EM4 -> 278484.4938 | L4: =[1]Cuadro!EN4 -> 257261.022 | M4: =[1]Cuadro!EO4 -> 278534.3278 | N4: =[1]Cuadro!EP4 -> 269445.6437 | O4: =[1]Cuadro!EQ4 -> 255527.0359 | P4: =[1]Cuadro!ER4 -> 287028.3635 | Q4: =[1]Cuadro!ES4 -> 280968.0283 | R4: =[1]Cuadro!ET4 -> 290943.7619 | S4: =[1]Cuadro!EU4 -> 277626.3869 | T4: =[1]Cuadro!EV4 -> 291128.2498 | U4: =[1]Cuadro!EW4 -> 286056.0544 | V4: =[1]Cuadro!EX4 -> 275729.0567 | W4: =[1]Cuadro!EY4 -> 288590.5739 | X4: =[1]Cuadro!EZ4 -> 263889.3967 | Y4: =[1]Cuadro!FA4 -> 289456.4545 | Z4: =[1]Cuadro!FB4 -> 284495.2352 | AA4: =[1]Cuadro!FC4 -> 261406.8621 | AB4: =[1]Cuadro!FD4 -> 297083.104 | AC4: =[1]Cuadro!FE4 -> 0 | AD4: =[1]Cuadro!FF4 -> 0 | AE4: =[1]Cuadro!FG4 -> 0
A5: =[1]Cuadro!A5 -> Compra Sistemas Regionales | B5: =[1]Cuadro!ED5 -> 5652.30039 | C5: =[1]Cuadro!EE5 -> 5420.019193 | D5: =[1]Cuadro!EF5 -> 5577.056912 | E5: =[1]Cuadro!EG5 -> 5092.150173 | F5: =[1]Cuadro!EH5 -> 5371.523811 | G5: =[1]Cuadro!EI5 -> 5161.894759 | H5: =[1]Cuadro!EJ5 -> 5279.384 | I5: =[1]Cuadro!EK5 -> 5365.437 | J5: =[1]Cuadro!EL5 -> 5228.427 | K5: =[1]Cuadro!EM5 -> 5510.304 | L5: =[1]Cuadro!EN5 -> 5288.244 | M5: =[1]Cuadro!EO5 -> 5590.267 | N5: =[1]Cuadro!EP5 -> 5584.208 | O5: =[1]Cuadro!EQ5 -> 5301.308 | P5: =[1]Cuadro!ER5 -> 5879.803 | Q5: =[1]Cuadro!ES5 -> 5912.799 | R5: =[1]Cuadro!ET5 -> 5794.59 | S5: =[1]Cuadro!EU5 -> 5638.955 | T5: =[1]Cuadro!EV5 -> 6013.467 | U5: =[1]Cuadro!EW5 -> 5863.609 | V5: =[1]Cuadro!EX5 -> 5615.824 | W5: =[1]Cuadro!EY5 -> 5962.528 | X5: =[1]Cuadro!EZ5 -> 5800.827 | Y5: =[1]Cuadro!FA5 -> 5954.584 | Z5: =[1]Cuadro!FB5 -> 5950.89 | AA5: =[1]Cuadro!FC5 -> 5493.19 | AB5: =[1]Cuadro!FD5 -> 6260.777 | AC5: =[1]Cuadro!FE5 -> 0 | AD5: =[1]Cuadro!FF5 -> 0 | AE5: =[1]Cuadro!FG5 -> 0
A6: =[1]Cuadro!A6 -> Compra ACP | B6: =[1]Cuadro!ED6 -> -68.633 | C6: =[1]Cuadro!EE6 -> -52.834 | D6: =[1]Cuadro!EF6 -> -60.056 | E6: =[1]Cuadro!EG6 -> -43.485 | F6: =[1]Cuadro!EH6 -> -42.923 | G6: =[1]Cuadro!EI6 -> -77.33 | H6: =[1]Cuadro!EJ6 -> -104.24 | I6: =[1]Cuadro!EK6 -> -47.335 | J6: =[1]Cuadro!EL6 -> -65.972 | K6: =[1]Cuadro!EM6 -> -42.848 | L6: =[1]Cuadro!EN6 -> -37.385 | M6: =[1]Cuadro!EO6 -> -75.498 | N6: =[1]Cuadro!EP6 -> -54.88 | O6: =[1]Cuadro!EQ6 -> -63.688 | P6: =[1]Cuadro!ER6 -> -55.633 | Q6: =[1]Cuadro!ES6 -> -63.582 | R6: =[1]Cuadro!ET6 -> -61.083 | S6: =[1]Cuadro!EU6 -> -52.585 | T6: =[1]Cuadro!EV6 -> -49.672 | U6: =[1]Cuadro!EW6 -> -62.522 | V6: =[1]Cuadro!EX6 -> -51.323 | W6: =[1]Cuadro!EY6 -> -55.145 | X6: =[1]Cuadro!EZ6 -> -66.298 | Y6: =[1]Cuadro!FA6 -> -59.682 | Z6: =[1]Cuadro!FB6 -> -60.303 | AA6: =[1]Cuadro!FC6 -> -58.772 | AB6: =[1]Cuadro!FD6 -> -57.268 | AC6: =[1]Cuadro!FE6 -> 0 | AD6: =[1]Cuadro!FF6 -> 0 | AE6: =[1]Cuadro!FG6 -> 0
A7: =[1]Cuadro!A7 -> Puntos Frontera con EDEMET | B7: =[1]Cuadro!ED7 -> 0 | C7: =[1]Cuadro!EE7 -> 0 | D7: =[1]Cuadro!EF7 -> 0 | E7: =[1]Cuadro!EG7 -> 0 | F7: =[1]Cuadro!EH7 -> 0 | G7: =[1]Cuadro!EI7 -> 0 | H7: =[1]Cuadro!EJ7 -> 0 | I7: =[1]Cuadro!EK7 -> 0 | J7: =[1]Cuadro!EL7 -> 0 | K7: =[1]Cuadro!EM7 -> 0 | L7: =[1]Cuadro!EN7 -> 0 | M7: =[1]Cuadro!EO7 -> 0 | N7: =[1]Cuadro!EP7 -> 0 | O7: =[1]Cuadro!EQ7 -> 0 | P7: =[1]Cuadro!ER7 -> 0 | Q7: =[1]Cuadro!ES7 -> 0 | R7: =[1]Cuadro!ET7 -> 0 | S7: =[1]Cuadro!EU7 -> 0 | T7: =[1]Cuadro!EV7 -> 0 | U7: =[1]Cuadro!EW7 -> 0 | V7: =[1]Cuadro!EX7 -> 0 | W7: =[1]Cuadro!EY7 -> 0 | X7: =[1]Cuadro!EZ7 -> 0 | Y7: =[1]Cuadro!FA7 -> 0 | Z7: =[1]Cuadro!FB7 -> 0 | AA7: =[1]Cuadro!FC7 -> 330.276 | AB7: =[1]Cuadro!FD7 -> 29.958 | AC7: =[1]Cuadro!FE7 -> 0 | AD7: =[1]Cuadro!FF7 -> 0 | AE7: =[1]Cuadro!FG7 -> 0
A8: =[1]Cuadro!A8 -> Energia para Grandes Clientes Habilitados | B8: =[1]Cuadro!ED8 -> 58986.28969 | C8: =[1]Cuadro!EE8 -> 59283.70796 | D8: =[1]Cuadro!EF8 -> 58854.02115 | E8: =[1]Cuadro!EG8 -> 42334.67238 | F8: =[1]Cuadro!EH8 -> 45966.732 | G8: =[1]Cuadro!EI8 -> 46986.79507 | H8: =[1]Cuadro!EJ8 -> 51636.66291 | I8: =[1]Cuadro!EK8 -> 53247.2037 | J8: =[1]Cuadro!EL8 -> 49954.9565 | K8: =[1]Cuadro!EM8 -> 60781.56427 | L8: =[1]Cuadro!EN8 -> 53327.5593 | M8: =[1]Cuadro!EO8 -> 62444.25746 | N8: =[1]Cuadro!EP8 -> 53980.83191 | O8: =[1]Cuadro!EQ8 -> 56611.18254 | P8: =[1]Cuadro!ER8 -> 71795.04457 | Q8: =[1]Cuadro!ES8 -> 66373.24598 | R8: =[1]Cuadro!ET8 -> 71264.51591 | S8: =[1]Cuadro!EU8 -> 67470.40897 | T8: =[1]Cuadro!EV8 -> 70991.17055 | U8: =[1]Cuadro!EW8 -> 69694.83729 | V8: =[1]Cuadro!EX8 -> 66413.70466 | W8: =[1]Cuadro!EY8 -> 73896.51804 | X8: =[1]Cuadro!EZ8 -> 68177.96105 | Y8: =[1]Cuadro!FA8 -> 74357.41474 | Z8: =[1]Cuadro!FB8 -> 71804.75446 | AA8: =[1]Cuadro!FC8 -> 64258.70557 | AB8: =[1]Cuadro!FD8 -> 75116.22361 | AC8: =[1]Cuadro!FE8 -> 0 | AD8: =[1]Cuadro!FF8 -> 0 | AE8: =[1]Cuadro!FG8 -> 0
A9: =[1]Cuadro!A9 -> Compra sin 115-11 | B9: =[1]Cuadro!ED9 -> 361757.391 | C9: =[1]Cuadro!EE9 -> 339853.5987 | D9: =[1]Cuadro!EF9 -> 356891.9005 | E9: =[1]Cuadro!EG9 -> 308092.2726 | F9: =[1]Cuadro!EH9 -> 327200.7468 | G9: =[1]Cuadro!EI9 -> 313620.5081 | H9: =[1]Cuadro!EJ9 -> 321648.49 | I9: =[1]Cuadro!EK9 -> 324574.5359 | J9: =[1]Cuadro!EL9 -> 318115.5336 | K9: =[1]Cuadro!EM9 -> 344733.514 | L9: =[1]Cuadro!EN9 -> 315839.4403 | M9: =[1]Cuadro!EO9 -> 346493.3542 | N9: =[1]Cuadro!EP9 -> 328955.8036 | O9: =[1]Cuadro!EQ9 -> 317375.8385 | P9: =[1]Cuadro!ER9 -> 364647.5781 | Q9: =[1]Cuadro!ES9 -> 353190.4913 | R9: =[1]Cuadro!ET9 -> 367941.7848 | S9: =[1]Cuadro!EU9 -> 350683.1659 | T9: =[1]Cuadro!EV9 -> 368083.2153 | U9: =[1]Cuadro!EW9 -> 361551.9787 | V9: =[1]Cuadro!EX9 -> 347707.2623 | W9: =[1]Cuadro!EY9 -> 368394.475 | X9: =[1]Cuadro!EZ9 -> 337801.8867 | Y9: =[1]Cuadro!FA9 -> 369708.7712 | Z9: =[1]Cuadro!FB9 -> 362190.5766 | AA9: =[1]Cuadro!FC9 -> 331430.2617 | AB9: =[1]Cuadro!FD9 -> 378432.7946 | AC9: =[1]Cuadro!FE9 -> 0 | AD9: =[1]Cuadro!FF9 -> 0 | AE9: =[1]Cuadro!FG9 -> 0
A10: =[1]Cuadro!A10 -> Energia hacia EDEMET (115-11) | B10: =[1]Cuadro!ED10 -> 26945.7801 | C10: =[1]Cuadro!EE10 -> 28992.89042 | D10: =[1]Cuadro!EF10 -> 30088.82249 | E10: =[1]Cuadro!EG10 -> 23107.3178 | F10: =[1]Cuadro!EH10 -> 25597.23421 | G10: =[1]Cuadro!EI10 -> 20257.84121 | H10: =[1]Cuadro!EJ10 -> 19951.77967 | I10: =[1]Cuadro!EK10 -> 21408.46733 | J10: =[1]Cuadro!EL10 -> 21699.93613 | K10: =[1]Cuadro!EM10 -> 22561.85849 | L10: =[1]Cuadro!EN10 -> 17722.13795 | M10: =[1]Cuadro!EO10 -> 22267.17997 | N10: =[1]Cuadro!EP10 -> 22360.0203 | O10: =[1]Cuadro!EQ10 -> 24970.73302 | P10: =[1]Cuadro!ER10 -> 31069.69871 | Q10: =[1]Cuadro!ES10 -> 28961.34808 | R10: =[1]Cuadro!ET10 -> 26861.49955 | S10: =[1]Cuadro!EU10 -> 22902.8393 | T10: =[1]Cuadro!EV10 -> 24950.92005 | U10: =[1]Cuadro!EW10 -> 20428.89919 | V10: =[1]Cuadro!EX10 -> 18203.71434 | W10: =[1]Cuadro!EY10 -> 23592.30963 | X10: =[1]Cuadro!EZ10 -> 22869.59343 | Y10: =[1]Cuadro!FA10 -> 28039.921 | Z10: =[1]Cuadro!FB10 -> 24347.23461 | AA10: =[1]Cuadro!FC10 -> 12897.67665 | AB10: =[1]Cuadro!FD10 -> 21749.91413 | AC10: =[1]Cuadro!FE10 -> 0 | AD10: =[1]Cuadro!FF10 -> 0 | AE10: =[1]Cuadro!FG10 -> 0
A11: =[1]Cuadro!A11 -> COMPRA TOTAL | B11: =[1]Cuadro!ED11 -> 388703.1711 | C11: =[1]Cuadro!EE11 -> 368846.4891 | D11: =[1]Cuadro!EF11 -> 386980.723 | E11: =[1]Cuadro!EG11 -> 331199.5904 | F11: =[1]Cuadro!EH11 -> 352797.981 | G11: =[1]Cuadro!EI11 -> 333878.3493 | H11: =[1]Cuadro!EJ11 -> 341600.2697 | I11: =[1]Cuadro!EK11 -> 345983.0032 | J11: =[1]Cuadro!EL11 -> 339815.4697 | K11: =[1]Cuadro!EM11 -> 367295.3725 | L11: =[1]Cuadro!EN11 -> 333561.5783 | M11: =[1]Cuadro!EO11 -> 368760.5342 | N11: =[1]Cuadro!EP11 -> 351315.8239 | O11: =[1]Cuadro!EQ11 -> 342346.5715 | P11: =[1]Cuadro!ER11 -> 395717.2768 | Q11: =[1]Cuadro!ES11 -> 382151.8394 | R11: =[1]Cuadro!ET11 -> 394803.2844 | S11: =[1]Cuadro!EU11 -> 373586.0052 | T11: =[1]Cuadro!EV11 -> 393034.1354 | U11: =[1]Cuadro!EW11 -> 381980.8779 | V11: =[1]Cuadro!EX11 -> 365910.9767 | W11: =[1]Cuadro!EY11 -> 391986.7846 | X11: =[1]Cuadro!EZ11 -> 360671.4801 | Y11: =[1]Cuadro!FA11 -> 397748.6922 | Z11: =[1]Cuadro!FB11 -> 386537.8112 | AA11: =[1]Cuadro!FC11 -> 344327.9383 | AB11: =[1]Cuadro!FD11 -> 400182.7087 | AC11: =[1]Cuadro!FE11 -> 0 | AD11: =[1]Cuadro!FF11 -> 0 | AE11: =[1]Cuadro!FG11 -> 0
A16: mes | B16: Compra total | C16: año base
A17: =TRANSPOSE(B3:AY3) -> 2020-01-01 | B17: =TRANSPOSE(B11:AY11) -> 388703.1711 | C17: =Parametros!C4 -> 0
A18: 2020-02-01 | B18: 368846.4891 | C18: =Parametros!C5 -> 0
A19: 2020-03-01 | B19: 386980.723 | C19: =Parametros!C6 -> 0
A20: 2020-04-01 | B20: 331199.5904 | C20: =Parametros!C7 -> 0
A21: 2020-05-01 | B21: 352797.981 | C21: =Parametros!C8 -> 0
A22: 2020-06-01 | B22: 333878.3493 | C22: =Parametros!C9 -> 0
A23: 2020-07-01 | B23: 341600.2697 | C23: =Parametros!C10 -> 0
A24: 2020-08-01 | B24: 345983.0032 | C24: =Parametros!C11 -> 0
A25: 2020-09-01 | B25: 339815.4697 | C25: =Parametros!C12 -> 1
A26: 2020-10-01 | B26: 367295.3725 | C26: =Parametros!C13 -> 1
A27: 2020-11-01 | B27: 333561.5783 | C27: =Parametros!C14 -> 1
A28: 2020-12-01 | B28: 368760.5342 | C28: =Parametros!C15 -> 1
A29: 2021-01-01 | B29: 351315.8239 | C29: =Parametros!C16 -> 1
A30: 2021-02-01 | B30: 342346.5715 | C30: =Parametros!C17 -> 1
A31: 2021-03-01 | B31: 395717.2768 | C31: =Parametros!C18 -> 1
A32: 2021-04-01 | B32: 382151.8394 | C32: =Parametros!C19 -> 1
A33: 2021-05-01 | B33: 394803.2844 | C33: =Parametros!C20 -> 1
A34: 2021-06-01 | B34: 373586.0052 | C34: =Parametros!C21 -> 1
A35: 2021-07-01 | B35: 393034.1354 | C35: =Parametros!C22 -> 1
A36: 2021-08-01 | B36: 381980.8779 | C36: =Parametros!C23 -> 1
A37: 2021-09-01 | B37: 365910.9767 | C37: =Parametros!C24 -> 0
A38: 2021-10-01 | B38: 391986.7846 | C38: =Parametros!C25 -> 0
A39: 2021-11-01 | B39: 360671.4801 | C39: =Parametros!C26 -> 0
A40: 2021-12-01 | B40: 397748.6922 | C40: =Parametros!C27 -> 0
A41: 2022-01-01 | B41: 386537.8112 | C41: =Parametros!C28 -> 0
A42: 2022-02-01 | B42: 344327.9383 | C42: =Parametros!C29 -> 0
A43: 2022-03-01 | B43: 400182.7087 | C43: =Parametros!C30 -> 0
A44: 2022-04-01 | B44: 0 | C44: =Parametros!C31 -> 0
A45: 2022-05-01 | B45: 0 | C45: =Parametros!C32 -> 0
A46: 2022-06-01 | B46: 0 | C46: =Parametros!C33 -> 0
A47: 00:00:00 | B47: 0 | C47: =Parametros!C34 -> 0
A48: 00:00:00 | B48: 0 | C48: =Parametros!C35 -> 0
A49: 00:00:00 | B49: 0 | C49: =Parametros!C36 -> 0
A50: 00:00:00 | B50: 0 | C50: =Parametros!C37 -> 0
A51: 00:00:00 | B51: 0 | C51: =Parametros!C38 -> 0
A52: 00:00:00 | B52: 0 | C52: =Parametros!C39 -> 0
A53: 00:00:00 | B53: 0 | C53: =Parametros!C40 -> 0
A54: 00:00:00 | B54: 0 | C54: =Parametros!C41 -> 0
A55: 00:00:00 | B55: 0 | C55: =Parametros!C42 -> 0
A56: 00:00:00 | B56: 0 | C56: =Parametros!C43 -> 0
A57: 00:00:00 | B57: 0 | C57: =Parametros!C44 -> 0
A58: 00:00:00 | B58: 0 | C58: =Parametros!C45 -> 0
A59: 00:00:00 | B59: 0 | C59: =Parametros!C46 -> 0
A60: 00:00:00 | B60: 0 | C60: =Parametros!C47 -> 0
A61: 00:00:00 | B61: 0 | C61: =Parametros!C48 -> 0
A62: 00:00:00 | B62: 0 | C62: =Parametros!C49 -> 0
A63: 00:00:00 | B63: 0 | C63: =Parametros!C50 -> 0
A64: 00:00:00 | B64: 0 | C64: =Parametros!C51 -> 0
A65: 00:00:00 | B65: 0 | C65: =Parametros!C52 -> 0
A66: 00:00:00 | B66: 0 | C66: =Parametros!C53 -> 0

Sheet Info_Perdidas
B8: Pérdidas (MWh)
B9: PT BT | C9: PT MT | D9: PT AT (sin Edemet) | E9: PT Edemet | F9: PT AT total | G9: PNT | H9: Total | I9: Año base
A10: 2020-01-01 | B10: =SUM([2]Cuadro!AM55:AO55) -> 5499 | C10: =SUM([2]Cuadro!AP55:AR55) -> 12543.54522 | D10: =SUM([2]Cuadro!AS55:AU55) -> 3101 | E10: =-([2]Cuadro!AE55-[2]Cuadro!B55)-[2]Cuadro!AD55 -> 188.6204607 | F10: =D10+E10 -> 3289.620461 | G10: =SUM([2]Cuadro!BN55:BP55) -> 17229.90678 | H10: =SUM(B10:E10,G10) -> 38562.07247 | I10: =Parametros!C4 -> 0
A11: 2020-02-01 | B11: =SUM([2]Cuadro!AM56:AO56) -> 5066 | C11: =SUM([2]Cuadro!AP56:AR56) -> 11807.38307 | D11: =SUM([2]Cuadro!AS56:AU56) -> 3158 | E11: =-([2]Cuadro!AE56-[2]Cuadro!B56)-[2]Cuadro!AD56 -> 202.9502329 | F11: =D11+E11 -> 3360.950233 | G11: =SUM([2]Cuadro!BN56:BP56) -> 18024.20293 | H11: =SUM(B11:E11,G11) -> 38258.53623 | I11: =Parametros!C5 -> 0
A12: 2020-03-01 | B12: =SUM([2]Cuadro!AM57:AO57) -> 5448 | C12: =SUM([2]Cuadro!AP57:AR57) -> 12018.32307 | D12: =SUM([2]Cuadro!AS57:AU57) -> 3262 | E12: =-([2]Cuadro!AE57-[2]Cuadro!B57)-[2]Cuadro!AD57 -> 210.6217575 | F12: 3472.621757 | G12: =SUM([2]Cuadro!BN57:BP57) -> 23245.5772 | H12: 44184.52203 | I12: =Parametros!C6 -> 0
A13: 2020-04-01 | B13: =SUM([2]Cuadro!AM58:AO58) -> 4783 | C13: =SUM([2]Cuadro!AP58:AR58) -> 11778.65275 | D13: =SUM([2]Cuadro!AS58:AU58) -> 2320 | E13: =-([2]Cuadro!AE58-[2]Cuadro!B58)-[2]Cuadro!AD58 -> 161.7512246 | F13: 2481.751225 | G13: =SUM([2]Cuadro!BN58:BP58) -> 24145.67722 | H13: 43189.08119 | I13: =Parametros!C7 -> 0
A14: 2020-05-01 | B14: =SUM([2]Cuadro!AM59:AO59) -> 5422 | C14: =SUM([2]Cuadro!AP59:AR59) -> 12548.12862 | D14: =SUM([2]Cuadro!AS59:AU59) -> 2463 | E14: =-([2]Cuadro!AE59-[2]Cuadro!B59)-[2]Cuadro!AD59 -> 179.1806394 | F14: 2642.180639 | G14: =SUM([2]Cuadro!BN59:BP59) -> 26439.48823 | H14: 47051.79749 | I14: =Parametros!C8 -> 0
A15: 2020-06-01 | B15: =SUM([2]Cuadro!AM60:AO60) -> 4989 | C15: =SUM([2]Cuadro!AP60:AR60) -> 12291.93245 | D15: =SUM([2]Cuadro!AS60:AU60) -> 2334 | E15: =-([2]Cuadro!AE60-[2]Cuadro!B60)-[2]Cuadro!AD60 -> 141.8048885 | F15: 2475.804888 | G15: =SUM([2]Cuadro!BN60:BP60) -> 24101.55244 | H15: 43858.28978 | I15: =Parametros!C9 -> 0
A16: 2020-07-01 | B16: =SUM([2]Cuadro!AM61:AO61) -> 4907 | C16: =SUM([2]Cuadro!AP61:AR61) -> 12099.00302 | D16: =SUM([2]Cuadro!AS61:AU61) -> 2385 | E16: =-([2]Cuadro!AE61-[2]Cuadro!B61)-[2]Cuadro!AD61 -> 139.6624577 | F16: 2524.662458 | G16: =SUM([2]Cuadro!BN61:BP61) -> 26281.26153 | H16: 45811.92701 | I16: =Parametros!C10 -> 0
A17: 2020-08-01 | B17: =SUM([2]Cuadro!AM62:AO62) -> 5030 | C17: =SUM([2]Cuadro!AP62:AR62) -> 12136.21 | D17: =SUM([2]Cuadro!AS62:AU62) -> 2372 | E17: =-([2]Cuadro!AE62-[2]Cuadro!B62)-[2]Cuadro!AD62 -> 149.8592713 | F17: 2521.859271 | G17: =SUM([2]Cuadro!BN62:BP62) -> 19217.08054 | H17: 38905.14981 | I17: =Parametros!C11 -> 0
A18: 2020-09-01 | B18: =SUM([2]Cuadro!AM63:AO63) -> 4903 | C18: =SUM([2]Cuadro!AP63:AR63) -> 12393.46941 | D18: =SUM([2]Cuadro!AS63:AU63) -> 2333 | E18: =-([2]Cuadro!AE63-[2]Cuadro!B63)-[2]Cuadro!AD63 -> 151.8995529 | F18: 2484.899553 | G18: =SUM([2]Cuadro!BN63:BP63) -> 22427.10035 | H18: 42208.46931 | I18: =Parametros!C12 -> 1
A19: 2020-10-01 | B19: =SUM([2]Cuadro!AM64:AO64) -> 5063 | C19: =SUM([2]Cuadro!AP64:AR64) -> 12644.02001 | D19: =SUM([2]Cuadro!AS64:AU64) -> 2584 | E19: =-([2]Cuadro!AE64-[2]Cuadro!B64)-[2]Cuadro!AD64 -> 157.9330095 | F19: 2741.933009 | G19: =SUM([2]Cuadro!BN64:BP64) -> 24722.23532 | H19: 45171.18834 | I19: =Parametros!C13 -> 1
A20: 2020-11-01 | B20: =SUM([2]Cuadro!AM65:AO65) -> 4788 | C20: =SUM([2]Cuadro!AP65:AR65) -> 12004 | D20: =SUM([2]Cuadro!AS65:AU65) -> 2479 | E20: =-([2]Cuadro!AE65-[2]Cuadro!B65)-[2]Cuadro!AD65 -> 124.0549657 | F20: 2603.054966 | G20: =SUM([2]Cuadro!BN65:BP65) -> 15863.249 | H20: 35258.30396 | I20: =Parametros!C14 -> 1
A21: 2020-12-01 | B21: =SUM([2]Cuadro!AM66:AO66) -> 5085 | C21: =SUM([2]Cuadro!AP66:AR66) -> 12705.87224 | D21: =SUM([2]Cuadro!AS66:AU66) -> 2518 | E21: =-([2]Cuadro!AE66-[2]Cuadro!B66)-[2]Cuadro!AD66 -> 155.8702598 | F21: 2673.87026 | G21: =SUM([2]Cuadro!BN66:BP66) -> 22063.42195 | H21: 42528.16445 | I21: =Parametros!C15 -> 1
A22: 2021-01-01 | B22: =SUM([2]Cuadro!AM67:AO67) -> 5043 | C22: =SUM([2]Cuadro!AP67:AR67) -> 12414 | D22: =SUM([2]Cuadro!AS67:AU67) -> 2703 | E22: =-([2]Cuadro!AE67-[2]Cuadro!B67)-[2]Cuadro!AD67 -> 156.5201421 | F22: 2859.520142 | G22: =SUM([2]Cuadro!BN67:BP67) -> 20281.71463 | H22: 40598.23477 | I22: =Parametros!C16 -> 1
A23: 2021-02-01 | B23: =SUM([2]Cuadro!AM68:AO68) -> 4758 | C23: =SUM([2]Cuadro!AP68:AR68) -> 12060 | D23: =SUM([2]Cuadro!AS68:AU68) -> 2470 | E23: =-([2]Cuadro!AE68-[2]Cuadro!B68)-[2]Cuadro!AD68 -> 174.7951311 | F23: 2644.795131 | G23: =SUM([2]Cuadro!BN68:BP68) -> 15930.72098 | H23: 35393.51612 | I23: =Parametros!C17 -> 1
A24: 2021-03-01 | B24: =SUM([2]Cuadro!AM69:AO69) -> 5331 | C24: =SUM([2]Cuadro!AP69:AR69) -> 13679.68915 | D24: =SUM([2]Cuadro!AS69:AU69) -> 3104 | E24: =-([2]Cuadro!AE69-[2]Cuadro!B69)-[2]Cuadro!AD69 -> 217.487891 | F24: 3321.487891 | G24: =SUM([2]Cuadro!BN69:BP69) -> 23574.49337 | H24: 45906.67041 | I24: =Parametros!C18 -> 1
A25: 2021-04-01 | B25: =SUM([2]Cuadro!AM70:AO70) -> 5309 | C25: =SUM([2]Cuadro!AP70:AR70) -> 13514.28168 | D25: =SUM([2]Cuadro!AS70:AU70) -> 2779 | E25: =-([2]Cuadro!AE70-[2]Cuadro!B70)-[2]Cuadro!AD70 -> 202.7294365 | F25: 2981.729437 | G25: =SUM([2]Cuadro!BN70:BP70) -> 17821.94796 | H25: 39626.95908 | I25: =Parametros!C19 -> 1
A26: 2021-05-01 | B26: =SUM([2]Cuadro!AM71:AO71) -> 5485.966667 | C26: =SUM([2]Cuadro!AP71:AR71) -> 13872.19313 | D26: =SUM([2]Cuadro!AS71:AU71) -> 3057 | E26: =-([2]Cuadro!AE71-[2]Cuadro!B71)-[2]Cuadro!AD71 -> 188.0304969 | F26: 3245.030497 | G26: =SUM([2]Cuadro!BN71:BP71) -> 17506.20023 | H26: 40109.39052 | I26: =Parametros!C20 -> 1
A27: 2021-06-01 | B27: =SUM([2]Cuadro!AM72:AO72) -> 5315.713138 | C27: =SUM([2]Cuadro!AP72:AR72) -> 13279.82371 | D27: =SUM([2]Cuadro!AS72:AU72) -> 2825.926438 | E27: =-([2]Cuadro!AE72-[2]Cuadro!B72)-[2]Cuadro!AD72 -> 160.3198751 | F27: 2986.246313 | G27: =SUM([2]Cuadro!BN72:BP72) -> 17020.31236 | H27: 38602.09552 | I27: =Parametros!C21 -> 1
A28: 2021-07-01 | B28: =SUM([2]Cuadro!AM73:AO73) -> 5477.960377 | C28: =SUM([2]Cuadro!AP73:AR73) -> 13688.90328 | D28: =SUM([2]Cuadro!AS73:AU73) -> 2746 | E28: =-([2]Cuadro!AE73-[2]Cuadro!B73)-[2]Cuadro!AD73 -> 174.6564404 | F28: 2920.65644 | G28: =SUM([2]Cuadro!BN73:BP73) -> 23523.23787 | H28: 45610.75796 | I28: =Parametros!C22 -> 1
A29: 2021-08-01 | B29: =SUM([2]Cuadro!AM74:AO74) -> 5420.638261 | C29: =SUM([2]Cuadro!AP74:AR74) -> 13651.20361 | D29: =SUM([2]Cuadro!AS74:AU74) -> 2465 | E29: =-([2]Cuadro!AE74-[2]Cuadro!B74)-[2]Cuadro!AD74 -> 143.0022943 | F29: 2608.002294 | G29: =SUM([2]Cuadro!BN74:BP74) -> 15923.72416 | H29: 37603.56833 | I29: =Parametros!C23 -> 1
A30: 2021-09-01 | B30: =SUM([2]Cuadro!AM75:AO75) -> 5212.38825 | C30: =SUM([2]Cuadro!AP75:AR75) -> 13331.41923 | D30: =SUM([2]Cuadro!AS75:AU75) -> 2247 | E30: =-([2]Cuadro!AE75-[2]Cuadro!B75)-[2]Cuadro!AD75 -> 127.4260004 | F30: 2374.426 | G30: =SUM([2]Cuadro!BN75:BP75) -> 18191.30168 | H30: 39109.53516 | I30: =Parametros!C24 -> 0
A31: 2021-10-01 | B31: =SUM([2]Cuadro!AM76:AO76) -> 5423.228202 | C31: =SUM([2]Cuadro!AP76:AR76) -> 13141.87882 | D31: =SUM([2]Cuadro!AS76:AU76) -> 2660.382054 | E31: =-([2]Cuadro!AE76-[2]Cuadro!B76)-[2]Cuadro!AD76 -> 165.1461674 | F31: 2825.528221 | G31: =SUM([2]Cuadro!BN76:BP76) -> 18873.69133 | H31: 40264.32658 | I31: =Parametros!C25 -> 0
A32: 2021-11-01 | B32: =SUM([2]Cuadro!AM77:AO77) -> 4992.289749 | C32: =SUM([2]Cuadro!AP77:AR77) -> 12877.62955 | D32: =SUM([2]Cuadro!AS77:AU77) -> 2542.015809 | E32: =-([2]Cuadro!AE77-[2]Cuadro!B77)-[2]Cuadro!AD77 -> 160.087154 | F32: 2702.102963 | G32: =SUM([2]Cuadro!BN77:BP77) -> 12799.57223 | H32: 33371.59448 | I32: =Parametros!C26 -> 0
A33: 2021-12-01 | B33: =SUM([2]Cuadro!AM78:AO78) -> 5088.334038 | C33: =SUM([2]Cuadro!AP78:AR78) -> 15054.53487 | D33: =SUM([2]Cuadro!AS78:AU78) -> 2606.981433 | E33: =-([2]Cuadro!AE78-[2]Cuadro!B78)-[2]Cuadro!AD78 -> 196.279447 | F33: 2803.26088 | G33: =SUM([2]Cuadro!BN78:BP78) -> 21781.3499 | H33: 44727.47969 | I33: =Parametros!C27 -> 0
A34: 2022-01-01 | B34: =SUM([2]Cuadro!AM79:AO79) -> 5304.560018 | C34: =SUM([2]Cuadro!AP79:AR79) -> 14466.23796 | D34: =SUM([2]Cuadro!AS79:AU79) -> 2604.717181 | E34: =-([2]Cuadro!AE79-[2]Cuadro!B79)-[2]Cuadro!AD79 -> 170.4306422 | F34: 2775.147823 | G34: =SUM([2]Cuadro!BN79:BP79) -> 12949.92034 | H34: 35495.86614 | I34: =Parametros!C28 -> 0
A35: 2022-02-01 | B35: =SUM([2]Cuadro!AM80:AO80) -> 4828.76537 | C35: =SUM([2]Cuadro!AP80:AR80) -> 13404.11017 | D35: =SUM([2]Cuadro!AS80:AU80) -> 2351.528143 | E35: =-([2]Cuadro!AE80-[2]Cuadro!B80)-[2]Cuadro!AD80 -> 90.28373653 | F35: 2441.81188 | G35: =SUM([2]Cuadro!BN80:BP80) -> 12323.90851 | H35: 32998.59593 | I35: =Parametros!C29 -> 0
A36: 2022-03-01 | B36: =SUM([2]Cuadro!AM81:AO81) -> 5319.749276 | C36: =SUM([2]Cuadro!AP81:AR81) -> 13768.08591 | D36: =SUM([2]Cuadro!AS81:AU81) -> 2987.562949 | E36: =-([2]Cuadro!AE81-[2]Cuadro!B81)-[2]Cuadro!AD81 -> 152.2493989 | F36: 3139.812348 | G36: =SUM([2]Cuadro!BN81:BP81) -> 24158.59701 | H36: 46386.24454 | I36: =Parametros!C30 -> 0
A37: 2022-04-01
A38: 2022-05-01
A39: 2022-06-01
A40: 2022-07-01
A41: 2022-08-01
A42: 2022-09-01
A43: 2022-10-01
A44: 2022-11-01
A45: 2022-12-01

Sheet Info_AP
B1: AP
B2: MWh
B3: fuente: enviada a ASEP
A4: 2020 | B4: ='[3]Datos Operativos'!$G$46 -> 75094.309
A5: 2021 | B5: ='[3]Datos Operativos'!$H$46 -> 82122
A6: 2022
B11: AP | C11: AP | D11: Año base
B12: MWh | C12: MWh
B13: (fuente: informes operativos) | C13: Oficial a ASEP ajustada
A14: 2020-01-01 | B14: =SUM([2]Cuadro!E55:G55) -> 5779.333 | C14: =B14/SUM($B$14:$B$25)*$B$4 -> 5779.142297 | D14: =Parametros!C4 -> 0
A15: 2020-02-01 | B15: =SUM([2]Cuadro!E56:G56) -> 5797.714 | C15: =B15/SUM($B$14:$B$25)*$B$4 -> 5797.52269 | D15: =Parametros!C5 -> 0
A16: 2020-03-01 | B16: =SUM([2]Cuadro!E57:G57) -> 5806.761 | C16: 5806.569392 | D16: =Parametros!C6 -> 0
A17: 2020-04-01 | B17: =SUM([2]Cuadro!E58:G58) -> 5808.082 | C17: 5807.890348 | D17: =Parametros!C7 -> 0
A18: 2020-05-01 | B18: =SUM([2]Cuadro!E59:G59) -> 5816.796 | C18: 5816.604061 | D18: =Parametros!C8 -> 0
A19: 2020-06-01 | B19: =SUM([2]Cuadro!E60:G60) -> 5828.006 | C19: 5827.813691 | D19: =Parametros!C9 -> 0
A20: 2020-07-01 | B20: =SUM([2]Cuadro!E61:G61) -> 6649.936 | C20: 6649.716569 | D20: =Parametros!C10 -> 0
A21: 2020-08-01 | B21: =SUM([2]Cuadro!E62:G62) -> 6647.86 | C21: 6647.640638 | D21: =Parametros!C11 -> 0
A22: 2020-09-01 | B22: =SUM([2]Cuadro!E63:G63) -> 6698.9 | C22: 6698.678954 | D22: =Parametros!C12 -> 1
A23: 2020-10-01 | B23: =SUM([2]Cuadro!E64:G64) -> 6719.567 | C23: 6719.345272 | D23: =Parametros!C13 -> 1
A24: 2020-11-01 | B24: =SUM([2]Cuadro!E65:G65) -> 6759.289 | C24: 6759.065961 | D24: =Parametros!C14 -> 1
A25: 2020-12-01 | B25: =SUM([2]Cuadro!E66:G66) -> 6784.543 | C25: 6784.319128 | D25: =Parametros!C15 -> 1
A26: 2021-01-01 | B26: =SUM([2]Cuadro!E67:G67) -> 6822.154 | C26: =B26/SUM($B$26:$B$37)*$B$5 -> 6822.306111 | D26: =Parametros!C16 -> 1
A27: 2021-02-01 | B27: =SUM([2]Cuadro!E68:G68) -> 6935.935 | C27: =B27/SUM($B$26:$B$37)*$B$5 -> 6936.089648 | D27: =Parametros!C17 -> 1
A28: 2021-03-01 | B28: =SUM([2]Cuadro!E69:G69) -> 7034.292 | C28: 7034.448841 | D28: =Parametros!C18 -> 1
A29: 2021-04-01 | B29: =SUM([2]Cuadro!E70:G70) -> 7069.384 | C29: 7069.541623 | D29: =Parametros!C19 -> 1
A30: 2021-05-01 | B30: =SUM([2]Cuadro!E71:G71) -> 7089.613 | C30: 7089.771074 | D30: =Parametros!C20 -> 1
A31: 2021-06-01 | B31: =SUM([2]Cuadro!E72:G72) -> 7075.799 | C31: 7075.956766 | D31: =Parametros!C21 -> 1
A32: 2021-07-01 | B32: =SUM([2]Cuadro!E73:G73) -> 6668.342 | C32: 6668.490681 | D32: =Parametros!C22 -> 1
A33: 2021-08-01 | B33: =SUM([2]Cuadro!E74:G74) -> 6669.856 | C33: 6670.004715 | D33: =Parametros!C23 -> 1
A34: 2021-09-01 | B34: =SUM([2]Cuadro!E75:G75) -> 6677.616 | C34: 6677.764888 | D34: =Parametros!C24 -> 0
A35: 2021-10-01 | B35: =SUM([2]Cuadro!E76:G76) -> 6682.995 | C35: 6683.144008 | D35: =Parametros!C25 -> 0
A36: 2021-11-01 | B36: =SUM([2]Cuadro!E77:G77) -> 6683.995 | C36: 6684.14403 | D36: =Parametros!C26 -> 0
A37: 2021-12-01 | B37: =SUM([2]Cuadro!E78:G78) -> 6710.188 | C37: 6710.337614 | D37: =Parametros!C27 -> 0
A38: 2022-01-01 | B38: =SUM([2]Cuadro!E79:G79) -> 6710.188 | D38: =Parametros!C28 -> 0
A39: 2022-02-01 | B39: =SUM([2]Cuadro!E80:G80) -> 6717.786 | D39: =Parametros!C29 -> 0
A40: 2022-03-01 | B40: =SUM([2]Cuadro!E81:G81) -> 6746.937 | D40: =Parametros!C30 -> 0
A41: 2022-04-01 | B41: =SUM([2]Cuadro!E82:G82) -> 0 | D41: =Parametros!C31 -> 0
A42: 2022-05-01 | B42: =SUM([2]Cuadro!E83:G83) -> 0 | D42: =Parametros!C32 -> 0
A43: 2022-06-01 | B43: =SUM([2]Cuadro!E84:G84) -> 0 | D43: =Parametros!C33 -> 0
A44: 2022-07-01 | B44: =SUM([2]Cuadro!E85:G85) -> 0 | D44: =Parametros!C34 -> 0
A45: 2022-08-01 | B45: =SUM([2]Cuadro!E86:G86) -> 0 | D45: =Parametros!C35 -> 0
A46: 2022-09-01 | B46: =SUM([2]Cuadro!E87:G87) -> 0 | D46: =Parametros!C36 -> 0
A47: 2022-10-01 | B47: =SUM([2]Cuadro!E88:G88) -> 0 | D47: =Parametros!C37 -> 0
A48: 2022-11-01 | B48: =SUM([2]Cuadro!E89:G89) -> 0 | D48: =Parametros!C38 -> 0
A49: 2022-12-01 | B49: =SUM([2]Cuadro!E90:G90) -> 0 | D49: =Parametros!C39 -> 0

Sheet Datos
C1: Empresa: | D1: =[4]DATOS!$B$3 -> ENSA
C2: Período: | D2: =[4]DATOS!B4 -> Sep 2020 - Ago 2021
D4: =D2 -> Sep 2020 - Ago 2021
C5: Cantidad semanas al año: | D5: =365/7 -> 52.14285714
C6: Horas semanales en punta: | D6: =COUNTIF('[5]Balance de Potencia'!$D$7:$D$678,"P")/4 -> 
C7: Horas semanales fuera de punta: | D7: =24*7-D6 -> 
C9: Energía Inyectada (MWh)
C10: AT | D10: =[5]INPUTS!$E$18/1000 -> 4424368.769
C11: % ingresado en Horas Punta | D11: =SUMIFS([6]Curva_semana!$C$2:$C$673,'[5]Balance de Potencia'!$D$7:$D$678,"P")/SUM([6]Curva_semana!$C$2:$C$673) -> 
C12: % ingresado en Horas Fuera Punta | D12: =1-D11 -> 
C14: Potencias Máximas (MW)
C15: Punta | D15: =MAX(IF('[5]Balance de Potencia'!$D$7:$D$678="P",[6]Curva_semana!$C$2:$C$673)) -> 623.3401915
C16: Fuera de Punta | D16: =MAX(IF('[5]Balance de Potencia'!$D$7:$D$678<>"P",[6]Curva_semana!$C$2:$C$673)) -> 563.6010628
C18: Pérdidas de Energía (%) Composición porcentual
C19: Pérdida NT BT (%) | D19: =Balance!F7/SUM(Balance!$F$7,Balance!$F$8,Balance!$F$11,Balance!$F$14) -> 0.4290893189
C20: Pérdida T BT (%) | D20: =Balance!F8/SUM(Balance!$F$7,Balance!$F$8,Balance!$F$11,Balance!$F$14) -> 0.1404403435
C21: Pérdida MT (%) | D21: =Balance!F11/SUM(Balance!$F$7,Balance!$F$8,Balance!$F$11,Balance!$F$14) -> 0.3532687697
C22: Pérdida AT (%) | D22: =Balance!F14/SUM(Balance!$F$7,Balance!$F$8,Balance!$F$11,Balance!$F$14) -> 0.0772015679
C24: Tipos de medición | D24: Energia
D25: Pot_Max
D26: Pot_Max_P
D27: Pot_Max_FP
B29: Nivel tensión | C29: Energía Facturada (MWh) | D29: =D4 -> Sep 2020 - Ago 2021
A30: =$D$24 -> Energia | B30: =IF(C30="","","BT") -> BT | C30: =TRANSPOSE('[5]Balance de Potencia'!$H$5:$AB$6) -> BTS_R | D30: =[4]DATOS!$P$5/1000 -> 1475145.447
A31: =$D$24 -> Energia | B31: BT | C31: BTS_O | D31: =[4]DATOS!$P$15/1000 -> 301605.0553
A32: Energia | B32: BT | C32: BTD | D32: =[4]DATOS!$P$25/1000 -> 630462.127
A33: Energia | B33: BT | C33: BTH | D33: =[4]DATOS!$P$35/1000 -> 8728.479
A34: Energia | B34: BT | C34: ABTD
A35: Energia
A36: Energia
A37: Energia
A38: Energia
A39: Energia
A40: Energia
A41: Energia
A42: Energia
A43: Energia
A44: Energia
A45: Energia
A46: Energia
A47: Energia
A48: Energia
A49: Energia
A50: Energia | B50: BT | C50: AP | D50: =SUMPRODUCT(Info_AP!C14:C49,Info_AP!D14:D49) -> 82328.01877
A51: Energia | B51: =IF(C51="","","MT") ->  | C51: =TRANSPOSE('[5]Balance de Potencia'!$AF$5:$AY$6) -> 
A52: Energia | B52: =IF(C52="","","MT") -> 
A53: Energia
A54: Energia
A55: Energia
A56: Energia
A57: Energia | B57: MT | C57: MTD | D57: =[4]DATOS!$P$65/1000 -> 690721.496
A58: Energia | B58: MT | C58: MTH | D58: =[4]DATOS!$P$75/1000 -> 153668.693
A59: Energia | B59: MT | C59: AMTD
A60: Energia
A61: Energia
A62: Energia
A63: Energia
A64: Energia
A65: Energia
A66: Energia
A67: Energia
A68: Energia
A69: Energia
A70: Energia
A71: Energia | B71: =IF(C71="","","AT") ->  | C71: =TRANSPOSE('[5]Balance de Potencia'!$BB$5:$BU$6) -> 
A72: Energia | B72: =IF(C72="","","AT") -> 
A73: Energia
A74: Energia
A75: Energia
A76: Energia
A77: Energia
A78: Energia
A79: Energia
A80: Energia
A81: Energia | B81: AT | C81: ATD | D81: =[4]DATOS!$P$105/1000 -> 79486.029
A82: Energia | B82: AT | C82: ATH | D82: =[4]DATOS!$P$115/1000 -> 273158.626
A83: Energia
A84: Energia
A85: Energia | B85: AT | C85: EDEMET | D85: =[4]DATOS!$P$145/1000 -> 287736.638
A86: Energia
A87: Energia
A88: Energia
A89: Energia
A90: Energia
C91: Total | D91: =SUM(D30:D90) -> 3983040.609
C94: Suma de potencias máximas leídas (promedio mensual) | D94: =D4 -> Sep 2020 - Ago 2021
A95: =$D$25 -> Pot_Max | B95: =B30 -> BT | C95: =C30 -> BTS_R
A96: =$D$25 -> Pot_Max | B96: =B31 -> BT | C96: BTS_O
A97: Pot_Max | B97: =B32 -> BT | C97: BTD | D97: =AVERAGE('[7]Data Real_comerc'!$AQ$129:$BB$129)+AVERAGE('[7]Data Real_comerc'!$AQ$150:$BB$150) -> 205.4936667
A98: Pot_Max | B98: =B33 -> BT | C98: BTH
A99: Pot_Max | B99: =B34 -> BT | C99: ABTD
A100: Pot_Max | B100: =B35 -> 
A101: Pot_Max | B101: =B36 -> 
A102: Pot_Max | B102: =B37 -> 
A103: Pot_Max | B103: =B38 -> 
A104: Pot_Max | B104: =B39 -> 
A105: Pot_Max | B105: =B40 -> 
A106: Pot_Max | B106: =B41 -> 
A107: Pot_Max | B107: =B42 -> 
A108: Pot_Max | B108: =B43 -> 
A109: Pot_Max | B109: =B44 -> 
A110: Pot_Max | B110: =B45 -> 
A111: Pot_Max | B111: =B46 -> 
A112: Pot_Max | B112: =B47 -> 
A113: Pot_Max | B113: =B48 -> 
A114: Pot_Max | B114: =B49 -> 
A115: Pot_Max | B115: =B50 -> BT | C115: AP
A116: Pot_Max | B116: =B51 -> 
A117: Pot_Max | B117: =B52 -> 
A118: Pot_Max | B118: =B53 -> 
A119: Pot_Max | B119: =B54 -> 
A120: Pot_Max | B120: =B55 -> 
A121: Pot_Max | B121: =B56 -> 
A122: Pot_Max | B122: =B57 -> MT | C122: MTD | D122: =AVERAGE('[7]Data Real_comerc'!$AQ$133:$BB$133)+AVERAGE('[7]Data Real_comerc'!$AQ$156:$BB$156) -> 150.1656667
A123: Pot_Max | B123: =B58 -> MT | C123: MTH
A124: Pot_Max | B124: =B59 -> MT | C124: AMTD
A125: Pot_Max | B125: =B60 -> 
A126: Pot_Max | B126: =B61 -> 
A127: Pot_Max | B127: =B62 -> 
A128: Pot_Max | B128: =B63 -> 
A129: Pot_Max | B129: =B64 -> 
A130: Pot_Max | B130: =B65 -> 
A131: Pot_Max | B131: =B66 -> 
A132: Pot_Max | B132: =B67 -> 
A133: Pot_Max | B133: =B68 -> 
A134: Pot_Max | B134: =B69 -> 
A135: Pot_Max | B135: =B70 -> 
A136: Pot_Max | B136: =B71 -> 
A137: Pot_Max | B137: =B72 -> 
A138: Pot_Max | B138: =B73 -> 
A139: Pot_Max | B139: =B74 -> 
A140: Pot_Max | B140: =B75 -> 
A141: Pot_Max | B141: =B76 -> 
A142: Pot_Max | B142: =B77 -> 
A143: Pot_Max | B143: =B78 -> 
A144: Pot_Max | B144: =B79 -> 
A145: Pot_Max | B145: =B80 -> 
A146: Pot_Max | B146: =B81 -> AT | C146: ATD | D146: =AVERAGE('[7]Data Real_comerc'!$AQ$136:$BB$136)+AVERAGE('[7]Data Real_comerc'!$AQ$162:$BB$162) -> 9.04975
A147: Pot_Max | B147: =B82 -> AT | C147: ATH
A148: Pot_Max | B148: =B83 -> 
A149: Pot_Max | B149: =B84 -> 
A150: Pot_Max | B150: =B85 -> AT | C150: EDEMET | D150: =AVERAGE('[7]Data Real_comerc'!$AQ$168:$BB$168) -> 62.01941667
A151: Pot_Max | B151: =B86 -> 
A152: Pot_Max | B152: =B87 -> 
A153: Pot_Max | B153: =B88 -> 
A154: Pot_Max | B154: =B89 -> 
A155: Pot_Max | B155: =B90 -> 
C158: Suma de potencias en horas de punta máximas leídas (promedio mensual) | D158: =D4 -> Sep 2020 - Ago 2021
A159: =$D$26 -> Pot_Max_P | B159: =B30 -> BT | C159: =C30 -> BTS_R
A160: =$D$26 -> Pot_Max_P | B160: =B31 -> BT | C160: BTS_O
A161: Pot_Max_P | B161: =B32 -> BT | C161: BTD
A162: Pot_Max_P | B162: =B33 -> BT | C162: BTH | D162: =AVERAGE('[7]Data Real_comerc'!$AQ$138:$BB$138)+AVERAGE('[7]Data Real_comerc'!$AQ$152:$BB$152) -> 2.14625
A163: Pot_Max_P | B163: =B34 -> BT | C163: ABTD
A164: Pot_Max_P | B164: =B35 -> 
A165: Pot_Max_P | B165: =B36 -> 
A166: Pot_Max_P | B166: =B37 -> 
A167: Pot_Max_P | B167: =B38 -> 
A168: Pot_Max_P | B168: =B39 -> 
A169: Pot_Max_P | B169: =B40 -> 
A170: Pot_Max_P | B170: =B41 -> 
A171: Pot_Max_P | B171: =B42 -> 
A172: Pot_Max_P | B172: =B43 -> 
A173: Pot_Max_P | B173: =B44 -> 
A174: Pot_Max_P | B174: =B45 -> 
A175: Pot_Max_P | B175: =B46 -> 
A176: Pot_Max_P | B176: =B47 -> 
A177: Pot_Max_P | B177: =B48 -> 
A178: Pot_Max_P | B178: =B49 -> 
A179: Pot_Max_P | B179: =B50 -> BT | C179: AP
A180: Pot_Max_P | B180: =B51 -> 
A181: Pot_Max_P | B181: =B52 -> 
A182: Pot_Max_P | B182: =B53 -> 
A183: Pot_Max_P | B183: =B54 -> 
A184: Pot_Max_P | B184: =B55 -> 
A185: Pot_Max_P | B185: =B56 -> 
A186: Pot_Max_P | B186: =B57 -> MT | C186: MTD
A187: Pot_Max_P | B187: =B58 -> MT | C187: MTH | D187: =AVERAGE('[7]Data Real_comerc'!$AQ$142:$BB$142)+AVERAGE('[7]Data Real_comerc'!$AQ$158:$BB$158) -> 29.83341667
A188: Pot_Max_P | B188: =B59 -> MT | C188: AMTD
A189: Pot_Max_P | B189: =B60 -> 
A190: Pot_Max_P | B190: =B61 -> 
A191: Pot_Max_P | B191: =B62 -> 
A192: Pot_Max_P | B192: =B63 -> 
A193: Pot_Max_P | B193: =B64 -> 
A194: Pot_Max_P | B194: =B65 -> 
A195: Pot_Max_P | B195: =B66 -> 
A196: Pot_Max_P | B196: =B67 -> 
A197: Pot_Max_P | B197: =B68 -> 
A198: Pot_Max_P | B198: =B69 -> 
A199: Pot_Max_P | B199: =B70 -> 
A200: Pot_Max_P | B200: =B71 -> 
A201: Pot_Max_P | B201: =B72 -> 
A202: Pot_Max_P | B202: =B73 -> 
A203: Pot_Max_P | B203: =B74 -> 
A204: Pot_Max_P | B204: =B75 -> 
A205: Pot_Max_P | B205: =B76 -> 
A206: Pot_Max_P | B206: =B77 -> 
A207: Pot_Max_P | B207: =B78 -> 
A208: Pot_Max_P | B208: =B79 -> 
A209: Pot_Max_P | B209: =B80 -> 
A210: Pot_Max_P | B210: =B81 -> AT | C210: ATD
... 160 more rows

Sheet Balance
E3: Pérdidas Totales (%) | F3: =(Datos!D10-Datos!D91)/Datos!D10 -> 0.09974940682
F5: =Datos!D4 -> Sep 2020 - Ago 2021
E6: Ventas BT | F6: =SUM(Datos!D30:D50) -> 2498269.127 | H6: =Datos!D30 -> 1475145.447
E7: Pérdidas NT BT | F7: =F16-SUM(F6,F8,F10,F11,F13,F14) -> 189369.1997
E8: Pérdidas T BT | F8: =SUMPRODUCT(Info_Perdidas!B$10:B$36,Info_Perdidas!$I$10:$I$36) -> 61980.27844
E9: Energía Ingresada BT | F9: =SUM(F6:F8) -> 2749618.605
E10: Ventas MT | F10: =SUM(Datos!D51:D70) -> 844390.189
E11: Pérdidas MT | F11: =SUMPRODUCT(Info_Perdidas!C$10:C$36,Info_Perdidas!$I$10:$I$36) -> 155907.4562
E12: Energía Ingresada MT | F12: =SUM(F9:F11) -> 3749916.25
E13: Ventas AT | F13: =SUM(Datos!D71:D90) -> 640381.293
E14: Pérdidas AT | F14: =SUMPRODUCT(Info_Perdidas!F$10:F$36,Info_Perdidas!$I$10:$I$36) -> 34071.22593
E15: Energía Ingresada AT | F15: =SUM(F12:F14) -> 4424368.769
E16: Energía Ingresada | F16: =Datos!D10 -> 4424368.769
E17: para Balance de potencia campaña | F17: =F7/F9 -> 0.06887107883
D18: Pérdidas de Energía (respecto del nivel de tensión correspondiente) | E18: BT NT | F18: =F7/(H6+F7) -> 0.113768419 | G18: =F7/F9 -> 0.06887107883
E19: BT T | F19: =F8/F9 -> 0.02254140932
E20: MT | F20: =F11/F12 -> 0.04157625019
E21: AT | F21: =F14/F15 -> 0.007700810604
C22: Factores de carga | D22: PUNTA | E22: BT | F22: =(H6+F7)/(8760*H116) -> 1.056383948 | G22: =F9/(8760*F116) -> 0.8418044327
E23: MT | F23: =F12/(8760*F165) -> 0.8078768317
E24: AT | F24: =F15/(8760*F236) -> 0.8102556756
D25: PUNTA | E25: BT | F25: =(F9*Datos!$D$11)/(8760*(Datos!$D$6/(Datos!$D$6+Datos!$D$7))*F116) -> 
E26: MT | F26: =(F12*Datos!$D$11)/(8760*(Datos!$D$6/(Datos!$D$6+Datos!$D$7))*F165) -> 
E27: AT | F27: =(F15*Datos!$D$11)/(8760*(Datos!$D$6/(Datos!$D$6+Datos!$D$7))*F236) -> 
D28: FUERA DE PUNTA | E28: BT | F28: =(F9*Datos!$D$12)/(8760*(Datos!$D$7/(Datos!$D$6+Datos!$D$7))*F271) -> 
E29: MT | F29: =(F12*Datos!$D$12)/(8760*(Datos!$D$7/(Datos!$D$6+Datos!$D$7))*F320) -> 
E30: AT | F30: =(F15*Datos!$D$12)/(8760*(Datos!$D$7/(Datos!$D$6+Datos!$D$7))*F391) -> 
C31: Factores de carga de pérdidas | E31: BT | F31: =0.7*F22^2+0.3*F22 -> 1.098078117 | G31: =0.7*F22^2+0.3*F22 -> 1.098078117
E32: MT | F32: =0.7*F23^2+0.3*F23 -> 0.6992285322
E33: AT | F33: 0.7026366846
D34: PUNTA | E34: BT
E35: MT
E36: AT
D37: FUERA DE PUNTA | E37: BT
E38: MT
E39: AT
C40: Pérdida Potencia | E40: BT NT | F40: =F18*F22/F31 -> 0.1094486173 | G40: =F18*F22/F31 -> 0.1094486173
E41: BT T | F41: =F19*F22/F31 -> 0.02168550908
E42: MT | F42: =F20*F23/F32 -> 0.04803649699
E43: AT | F43: =F21*F24/F33 -> 0.00888030135
D44: PUNTA | E44: BT NT | F44: =F40 -> 0.1094486173
E45: BT T | F45: =F41 -> 0.02168550908
E46: MT | F46: =F42 -> 0.04803649699
E47: AT | F47: =F43 -> 0.00888030135
D48: FUERA DE PUNTA | E48: BT NT | F48: =F40 -> 0.1094486173
E49: BT T | F49: =F41 -> 0.02168550908
E50: MT | F50: =F42 -> 0.04803649699
E51: AT | F51: =F43 -> 0.00888030135
C52: Pérdida Potencia | D52: PUNTA | E52: BT NT | F52: 0.1094486166
E53: BT T | F53: 0.02168550894
E54: MT | F54: 0.04803649695
E55: AT | F55: 0.00888030135
D56: FUERA DE PUNTA | E56: BT NT | F56: 0.1094486173
E57: BT T | F57: 0.02168550908
E58: MT | F58: 0.04803649699
E59: AT | F59: 0.00888030135
C60: Cierre | D60: PUNTA | E60: BT NT | F60: =F52-F40 -> -7.159808163e-10
E61: BT T | F61: =F53-F41 -> -1.418602527e-10
E62: MT | F62: =F54-F42 -> -4.349937771e-11
E63: AT | F63: =F55-F43 -> 0
D64: FUERA DE PUNTA | E64: BT NT | F64: =F56-F40 -> 0
E65: BT T | F65: =F57-F41 -> 0
E66: MT | F66: =F58-F42 -> 0
E67: AT | F67: =F59-F43 -> 0
C68: Factores pérdidas Punta | D68: PUNTA | E68: BT NT | F68: =1/(1-F52) -> 1.122899833
E69: BT T | F69: 1.022166194
E70: MT | F70: 1.05046044
E71: AT | F71: 1.008959868
D72: FUERA DE PUNTA | E72: BT NT | F72: 1.122899834
E73: BT T | F73: 1.022166194
E74: MT | F74: 1.05046044
E75: AT | F75: 1.008959868
C76: Factores pérdidas Punta Acumulados | D76: PUNTA | E76: BT NT | F76: =PRODUCT(F$68:F68) -> 1.122899833
E77: BT T | F77: =PRODUCT(F$68:F69) -> 1.147790249
E78: MT | F78: =PRODUCT(F$68:F70) -> 1.20570825
E79: AT | F79: =PRODUCT(F$68:F71) -> 1.216511236
D80: FUERA DE PUNTA | E80: BT NT | F80: =PRODUCT(F$72:F72) -> 1.122899834
E81: BT T | F81: =PRODUCT(F$72:F73) -> 1.14779025
E82: MT | F82: =PRODUCT(F$72:F74) -> 1.205708251
E83: AT | F83: =PRODUCT(F$72:F75) -> 1.216511237
E86: FaP | F86: 0.9613451693
E87: FaFP | F87: 0.9840915828
A89: BALANCE DE POTENCIA HORAS PUNTA
F90: =Datos!D4 -> Sep 2020 - Ago 2021
C91: Coeficientes de responsabilidad (Tipo de medición) | F91: Potencia coincidente con máxima BT
A92: Variable Facturación | C92: Energía | D92: Potencia máxima | E92: Potencia por franja horaria
A93: =Datos!D353 -> Energia | B93: =Datos!C30 -> BTS_R | C93: =1/(Datos!$G288*8760)*Datos!$X288*$F$86 -> 0.0001085890068 | D93: =Datos!$H288*Datos!$X288*$F$86 -> 0.344689941 | E93: =Datos!$I288*Datos!$N288*$F$86 -> 0.4600094561 | F93: =IFERROR(SUMIFS(Datos!D:D,Datos!$A:$A,$A93,Datos!$C:$C,$B93)*IF($A93=Datos!$D$24,$C93,IF($A93=Datos!$D$25,$D93,$E93)),"-") -> 160.1845789
A94: =Datos!D354 -> Energia | B94: =Datos!C31 -> BTS_O | C94: =1/(Datos!$G289*8760)*Datos!$X289*$F$86 -> 0.0001852025304 | D94: =Datos!$H289*Datos!$X289*$F$86 -> 0.5460873462 | E94: =Datos!$I289*Datos!$N289*$F$86 -> 0.6091129837 | F94: =IFERROR(SUMIFS(Datos!D:D,Datos!$A:$A,$A94,Datos!$C:$C,$B94)*IF($A94=Datos!$D$24,$C94,IF($A94=Datos!$D$25,$D94,$E94)),"-") -> 55.85801941
A95: =Datos!D355 -> Energia | B95: =Datos!C32 -> BTD | C95: =1/(Datos!$G290*8760)*Datos!$X290*$F$86 -> 0.0002029211941 | D95: =Datos!$H290*Datos!$X290*$F$86 -> 0.7353419273 | E95: =Datos!$I290*Datos!$N290*$F$86 -> 0.7565711349 | F95: =IFERROR(SUMIFS(Datos!D:D,Datos!$A:$A,$A95,Datos!$C:$C,$B95)*IF($A95=Datos!$D$24,$C95,IF($A95=Datos!$D$25,$D95,$E95)),"-") -> 127.9341277
A96: =Datos!D356 -> Energia | B96: =Datos!C33 -> BTH | C96: =1/(Datos!$G291*8760)*Datos!$X291*$F$86 -> 0.0001283715897 | D96: =Datos!$H291*Datos!$X291*$F$86 -> 0.552322486 | E96: =Datos!$I291*Datos!$N291*$F$86 -> 0.7608200456 | F96: =IFERROR(SUMIFS(Datos!D:D,Datos!$A:$A,$A96,Datos!$C:$C,$B96)*IF($A96=Datos!$D$24,$C96,IF($A96=Datos!$D$25,$D96,$E96)),"-") -> 1.120488725
A97: =Datos!D357 -> 0 | B97: =Datos!C34 -> ABTD | C97: =1/(Datos!$G292*8760)*Datos!$X292*$F$86 ->  | D97: =Datos!$H292*Datos!$X292*$F$86 ->  | E97: =Datos!$I292*Datos!$N292*$F$86 ->  | F97: =IFERROR(SUMIFS(Datos!D:D,Datos!$A:$A,$A97,Datos!$C:$C,$B97)*IF($A97=Datos!$D$24,$C97,IF($A97=Datos!$D$25,$D97,$E97)),"-") -> -
A98: =Datos!D358 -> 0 | B98: =Datos!C35 ->  | C98: =1/(Datos!$G293*8760)*Datos!$X293*$F$86 ->  | D98: =Datos!$H293*Datos!$X293*$F$86 ->  | E98: =Datos!$I293*Datos!$N293*$F$86 ->  | F98: =IFERROR(SUMIFS(Datos!D:D,Datos!$A:$A,$A98,Datos!$C:$C,$B98)*IF($A98=Datos!$D$24,$C98,IF($A98=Datos!$D$25,$D98,$E98)),"-") -> -
A99: =Datos!D359 -> 0 | B99: =Datos!C36 ->  | C99: =1/(Datos!$G294*8760)*Datos!$X294*$F$86 ->  | D99: =Datos!$H294*Datos!$X294*$F$86 ->  | E99: =Datos!$I294*Datos!$N294*$F$86 ->  | F99: =IFERROR(SUMIFS(Datos!D:D,Datos!$A:$A,$A99,Datos!$C:$C,$B99)*IF($A99=Datos!$D$24,$C99,IF($A99=Datos!$D$25,$D99,$E99)),"-") -> -
A100: =Datos!D360 -> 0 | B100: =Datos!C37 ->  | C100: =1/(Datos!$G295*8760)*Datos!$X295*$F$86 ->  | D100: =Datos!$H295*Datos!$X295*$F$86 ->  | E100: =Datos!$I295*Datos!$N295*$F$86 ->  | F100: =IFERROR(SUMIFS(Datos!D:D,Datos!$A:$A,$A100,Datos!$C:$C,$B100)*IF($A100=Datos!$D$24,$C100,IF($A100=Datos!$D$25,$D100,$E100)),"-") -> -
A101: =Datos!D361 -> 0 | B101: =Datos!C38 ->  | C101: =1/(Datos!$G296*8760)*Datos!$X296*$F$86 ->  | D101: =Datos!$H296*Datos!$X296*$F$86 ->  | E101: =Datos!$I296*Datos!$N296*$F$86 ->  | F101: =IFERROR(SUMIFS(Datos!D:D,Datos!$A:$A,$A101,Datos!$C:$C,$B101)*IF($A101=Datos!$D$24,$C101,IF($A101=Datos!$D$25,$D101,$E101)),"-") -> -
A102: =Datos!D362 -> 0 | B102: =Datos!C39 ->  | C102: =1/(Datos!$G297*8760)*Datos!$X297*$F$86 ->  | D102: =Datos!$H297*Datos!$X297*$F$86 ->  | E102: =Datos!$I297*Datos!$N297*$F$86 ->  | F102: =IFERROR(SUMIFS(Datos!D:D,Datos!$A:$A,$A102,Datos!$C:$C,$B102)*IF($A102=Datos!$D$24,$C102,IF($A102=Datos!$D$25,$D102,$E102)),"-") -> -
A103: =Datos!D363 -> 0 | B103: =Datos!C40 ->  | C103: =1/(Datos!$G298*8760)*Datos!$X298*$F$86 ->  | D103: =Datos!$H298*Datos!$X298*$F$86 ->  | E103: =Datos!$I298*Datos!$N298*$F$86 ->  | F103: =IFERROR(SUMIFS(Datos!D:D,Datos!$A:$A,$A103,Datos!$C:$C,$B103)*IF($A103=Datos!$D$24,$C103,IF($A103=Datos!$D$25,$D103,$E103)),"-") -> -
A104: =Datos!D364 -> 0 | B104: =Datos!C41 ->  | C104: =1/(Datos!$G299*8760)*Datos!$X299*$F$86 ->  | D104: =Datos!$H299*Datos!$X299*$F$86 ->  | E104: =Datos!$I299*Datos!$N299*$F$86 ->  | F104: =IFERROR(SUMIFS(Datos!D:D,Datos!$A:$A,$A104,Datos!$C:$C,$B104)*IF($A104=Datos!$D$24,$C104,IF($A104=Datos!$D$25,$D104,$E104)),"-") -> -
A105: =Datos!D365 -> 0 | B105: =Datos!C42 ->  | C105: =1/(Datos!$G300*8760)*Datos!$X300*$F$86 ->  | D105: =Datos!$H300*Datos!$X300*$F$86 ->  | E105: =Datos!$I300*Datos!$N300*$F$86 ->  | F105: =IFERROR(SUMIFS(Datos!D:D,Datos!$A:$A,$A105,Datos!$C:$C,$B105)*IF($A105=Datos!$D$24,$C105,IF($A105=Datos!$D$25,$D105,$E105)),"-") -> -
A106: =Datos!D366 -> 0 | B106: =Datos!C43 ->  | C106: =1/(Datos!$G301*8760)*Datos!$X301*$F$86 ->  | D106: =Datos!$H301*Datos!$X301*$F$86 ->  | E106: =Datos!$I301*Datos!$N301*$F$86 ->  | F106: =IFERROR(SUMIFS(Datos!D:D,Datos!$A:$A,$A106,Datos!$C:$C,$B106)*IF($A106=Datos!$D$24,$C106,IF($A106=Datos!$D$25,$D106,$E106)),"-") -> -
A107: =Datos!D367 -> 0 | B107: =Datos!C44 ->  | C107: =1/(Datos!$G302*8760)*Datos!$X302*$F$86 ->  | D107: =Datos!$H302*Datos!$X302*$F$86 ->  | E107: =Datos!$I302*Datos!$N302*$F$86 ->  | F107: =IFERROR(SUMIFS(Datos!D:D,Datos!$A:$A,$A107,Datos!$C:$C,$B107)*IF($A107=Datos!$D$24,$C107,IF($A107=Datos!$D$25,$D107,$E107)),"-") -> -
A108: =Datos!D368 -> 0 | B108: =Datos!C45 ->  | C108: =1/(Datos!$G303*8760)*Datos!$X303*$F$86 ->  | D108: =Datos!$H303*Datos!$X303*$F$86 ->  | E108: =Datos!$I303*Datos!$N303*$F$86 ->  | F108: =IFERROR(SUMIFS(Datos!D:D,Datos!$A:$A,$A108,Datos!$C:$C,$B108)*IF($A108=Datos!$D$24,$C108,IF($A108=Datos!$D$25,$D108,$E108)),"-") -> -
A109: =Datos!D369 -> 0 | B109: =Datos!C46 ->  | C109: =1/(Datos!$G304*8760)*Datos!$X304*$F$86 ->  | D109: =Datos!$H304*Datos!$X304*$F$86 ->  | E109: =Datos!$I304*Datos!$N304*$F$86 ->  | F109: =IFERROR(SUMIFS(Datos!D:D,Datos!$A:$A,$A109,Datos!$C:$C,$B109)*IF($A109=Datos!$D$24,$C109,IF($A109=Datos!$D$25,$D109,$E109)),"-") -> -
A110: =Datos!D370 -> 0 | B110: =Datos!C47 ->  | C110: =1/(Datos!$G305*8760)*Datos!$X305*$F$86 ->  | D110: =Datos!$H305*Datos!$X305*$F$86 ->  | E110: =Datos!$I305*Datos!$N305*$F$86 ->  | F110: =IFERROR(SUMIFS(Datos!D:D,Datos!$A:$A,$A110,Datos!$C:$C,$B110)*IF($A110=Datos!$D$24,$C110,IF($A110=Datos!$D$25,$D110,$E110)),"-") -> -
A111: =Datos!D371 -> 0 | B111: =Datos!C48 ->  | C111: =1/(Datos!$G306*8760)*Datos!$X306*$F$86 ->  | D111: =Datos!$H306*Datos!$X306*$F$86 ->  | E111: =Datos!$I306*Datos!$N306*$F$86 ->  | F111: =IFERROR(SUMIFS(Datos!D:D,Datos!$A:$A,$A111,Datos!$C:$C,$B111)*IF($A111=Datos!$D$24,$C111,IF($A111=Datos!$D$25,$D111,$E111)),"-") -> -
A112: =Datos!D372 -> 0 | B112: =Datos!C49 ->  | C112: =1/(Datos!$G307*8760)*Datos!$X307*$F$86 ->  | D112: =Datos!$H307*Datos!$X307*$F$86 ->  | E112: =Datos!$I307*Datos!$N307*$F$86 ->  | F112: =IFERROR(SUMIFS(Datos!D:D,Datos!$A:$A,$A112,Datos!$C:$C,$B112)*IF($A112=Datos!$D$24,$C112,IF($A112=Datos!$D$25,$D112,$E112)),"-") -> -
A113: =Datos!D373 -> Energia | B113: =Datos!C50 -> AP | C113: =1/(Datos!$G308*8760)*Datos!$X308*$F$86 -> 0 | D113: =Datos!$H308*Datos!$X308*$F$86 -> 0 | E113: =Datos!$I308*Datos!$N308*$F$86 -> 0 | F113: =IFERROR(SUMIFS(Datos!D:D,Datos!$A:$A,$A113,Datos!$C:$C,$B113)*IF($A113=Datos!$D$24,$C113,IF($A113=Datos!$D$25,$D113,$E113)),"-") -> 0
B114: Pérdida NT BT | F114: =SUM(F93)*(F68-1) -> 19.68665806 | G114: =SUM(F93:F113)*(F68-1) -> 42.41239019
B115: Pérdida T BT | F115: =SUM(F93:F114)*(F69-1) -> 8.085870143
B116: Potencia Máxima BT | F116: =SUM(F93:F115) -> 372.8697429 | H116: =F93+F114 -> 179.871237
C118: Coeficientes de responsabilidad (Tipo de medición) | F118: Potencia coincidente con máxima MT
C119: Energía | D119: Potencia máxima | E119: Potencia por franja horaria
A120: =A93 -> Energia | B120: =Datos!C30 -> BTS_R | C120: =1/(Datos!$G288*8760)*Datos!$Y288*$F$86 -> 0.0001085890068 | D120: =Datos!$H288*Datos!$Y288*$F$86 -> 0.344689941 | E120: =Datos!$I288*Datos!$O288*$F$86 -> 0.4600094561 | F120: =IFERROR(SUMIFS(Datos!D:D,Datos!$A:$A,$A120,Datos!$C:$C,$B120)*IF($A120=Datos!$D$24,$C120,IF($A120=Datos!$D$25,$D120,$E120)),"-") -> 160.1845789
A121: Energia | B121: =Datos!C31 -> BTS_O | C121: =1/(Datos!$G289*8760)*Datos!$Y289*$F$86 -> 0.0001852025304 | D121: =Datos!$H289*Datos!$Y289*$F$86 -> 0.5460873462 | E121: =Datos!$I289*Datos!$O289*$F$86 -> 0.6091129837 | F121: =IFERROR(SUMIFS(Datos!D:D,Datos!$A:$A,$A121,Datos!$C:$C,$B121)*IF($A121=Datos!$D$24,$C121,IF($A121=Datos!$D$25,$D121,$E121)),"-") -> 55.85801941
A122: Energia | B122: =Datos!C32 -> BTD | C122: =1/(Datos!$G290*8760)*Datos!$Y290*$F$86 -> 0.0002029211941 | D122: =Datos!$H290*Datos!$Y290*$F$86 -> 0.7353419273 | E122: =Datos!$I290*Datos!$O290*$F$86 -> 0.7565711349 | F122: =IFERROR(SUMIFS(Datos!D:D,Datos!$A:$A,$A122,Datos!$C:$C,$B122)*IF($A122=Datos!$D$24,$C122,IF($A122=Datos!$D$25,$D122,$E122)),"-") -> 127.9341277
A123: Energia | B123: =Datos!C33 -> BTH | C123: =1/(Datos!$G291*8760)*Datos!$Y291*$F$86 -> 0.0001283715897 | D123: =Datos!$H291*Datos!$Y291*$F$86 -> 0.552322486 | E123: =Datos!$I291*Datos!$O291*$F$86 -> 0.7608200456 | F123: =IFERROR(SUMIFS(Datos!D:D,Datos!$A:$A,$A123,Datos!$C:$C,$B123)*IF($A123=Datos!$D$24,$C123,IF($A123=Datos!$D$25,$D123,$E123)),"-") -> 1.120488725
A124: 0 | B124: =Datos!C34 -> ABTD | C124: =1/(Datos!$G292*8760)*Datos!$Y292*$F$86 ->  | D124: =Datos!$H292*Datos!$Y292*$F$86 ->  | E124: =Datos!$I292*Datos!$O292*$F$86 ->  | F124: =IFERROR(SUMIFS(Datos!D:D,Datos!$A:$A,$A124,Datos!$C:$C,$B124)*IF($A124=Datos!$D$24,$C124,IF($A124=Datos!$D$25,$D124,$E124)),"-") -> -
A125: 0 | B125: =Datos!C35 ->  | C125: =1/(Datos!$G293*8760)*Datos!$Y293*$F$86 ->  | D125: =Datos!$H293*Datos!$Y293*$F$86 ->  | E125: =Datos!$I293*Datos!$O293*$F$86 ->  | F125: =IFERROR(SUMIFS(Datos!D:D,Datos!$A:$A,$A125,Datos!$C:$C,$B125)*IF($A125=Datos!$D$24,$C125,IF($A125=Datos!$D$25,$D125,$E125)),"-") -> -
A126: 0 | B126: =Datos!C36 ->  | C126: =1/(Datos!$G294*8760)*Datos!$Y294*$F$86 ->  | D126: =Datos!$H294*Datos!$Y294*$F$86 ->  | E126: =Datos!$I294*Datos!$O294*$F$86 ->  | F126: =IFERROR(SUMIFS(Datos!D:D,Datos!$A:$A,$A126,Datos!$C:$C,$B126)*IF($A126=Datos!$D$24,$C126,IF($A126=Datos!$D$25,$D126,$E126)),"-") -> -
A127: 0 | B127: =Datos!C37 ->  | C127: =1/(Datos!$G295*8760)*Datos!$Y295*$F$86 ->  | D127: =Datos!$H295*Datos!$Y295*$F$86 ->  | E127: =Datos!$I295*Datos!$O295*$F$86 ->  | F127: =IFERROR(SUMIFS(Datos!D:D,Datos!$A:$A,$A127,Datos!$C:$C,$B127)*IF($A127=Datos!$D$24,$C127,IF($A127=Datos!$D$25,$D127,$E127)),"-") -> -
A128: 0 | B128: =Datos!C38 ->  | C128: =1/(Datos!$G296*8760)*Datos!$Y296*$F$86 ->  | D128: =Datos!$H296*Datos!$Y296*$F$86 ->  | E128: =Datos!$I296*Datos!$O296*$F$86 ->  | F128: =IFERROR(SUMIFS(Datos!D:D,Datos!$A:$A,$A128,Datos!$C:$C,$B128)*IF($A128=Datos!$D$24,$C128,IF($A128=Datos!$D$25,$D128,$E128)),"-") -> -
A129: 0 | B129: =Datos!C39 ->  | C129: =1/(Datos!$G297*8760)*Datos!$Y297*$F$86 ->  | D129: =Datos!$H297*Datos!$Y297*$F$86 ->  | E129: =Datos!$I297*Datos!$O297*$F$86 ->  | F129: =IFERROR(SUMIFS(Datos!D:D,Datos!$A:$A,$A129,Datos!$C:$C,$B129)*IF($A129=Datos!$D$24,$C129,IF($A129=Datos!$D$25,$D129,$E129)),"-") -> -
A130: 0 | B130: =Datos!C40 ->  | C130: =1/(Datos!$G298*8760)*Datos!$Y298*$F$86 ->  | D130: =Datos!$H298*Datos!$Y298*$F$86 ->  | E130: =Datos!$I298*Datos!$O298*$F$86 ->  | F130: =IFERROR(SUMIFS(Datos!D:D,Datos!$A:$A,$A130,Datos!$C:$C,$B130)*IF($A130=Datos!$D$24,$C130,IF($A130=Datos!$D$25,$D130,$E130)),"-") -> -
A131: 0 | B131: =Datos!C41 ->  | C131: =1/(Datos!$G299*8760)*Datos!$Y299*$F$86 ->  | D131: =Datos!$H299*Datos!$Y299*$F$86 ->  | E131: =Datos!$I299*Datos!$O299*$F$86 ->  | F131: =IFERROR(SUMIFS(Datos!D:D,Datos!$A:$A,$A131,Datos!$C:$C,$B131)*IF($A131=Datos!$D$24,$C131,IF($A131=Datos!$D$25,$D131,$E131)),"-") -> -
A132: 0 | B132: =Datos!C42 ->  | C132: =1/(Datos!$G300*8760)*Datos!$Y300*$F$86 ->  | D132: =Datos!$H300*Datos!$Y300*$F$86 ->  | E132: =Datos!$I300*Datos!$O300*$F$86 ->  | F132: =IFERROR(SUMIFS(Datos!D:D,Datos!$A:$A,$A132,Datos!$C:$C,$B132)*IF($A132=Datos!$D$24,$C132,IF($A132=Datos!$D$25,$D132,$E132)),"-") -> -
A133: 0 | B133: =Datos!C43 ->  | C133: =1/(Datos!$G301*8760)*Datos!$Y301*$F$86 ->  | D133: =Datos!$H301*Datos!$Y301*$F$86 ->  | E133: =Datos!$I301*Datos!$O301*$F$86 ->  | F133: =IFERROR(SUMIFS(Datos!D:D,Datos!$A:$A,$A133,Datos!$C:$C,$B133)*IF($A133=Datos!$D$24,$C133,IF($A133=Datos!$D$25,$D133,$E133)),"-") -> -
A134: 0 | B134: =Datos!C44 ->  | C134: =1/(Datos!$G302*8760)*Datos!$Y302*$F$86 ->  | D134: =Datos!$H302*Datos!$Y302*$F$86 ->  | E134: =Datos!$I302*Datos!$O302*$F$86 ->  | F134: =IFERROR(SUMIFS(Datos!D:D,Datos!$A:$A,$A134,Datos!$C:$C,$B134)*IF($A134=Datos!$D$24,$C134,IF($A134=Datos!$D$25,$D134,$E134)),"-") -> -
A135: 0 | B135: =Datos!C45 ->  | C135: =1/(Datos!$G303*8760)*Datos!$Y303*$F$86 ->  | D135: =Datos!$H303*Datos!$Y303*$F$86 ->  | E135: =Datos!$I303*Datos!$O303*$F$86 ->  | F135: =IFERROR(SUMIFS(Datos!D:D,Datos!$A:$A,$A135,Datos!$C:$C,$B135)*IF($A135=Datos!$D$24,$C135,IF($A135=Datos!$D$25,$D135,$E135)),"-") -> -
A136: 0 | B136: =Datos!C46 ->  | C136: =1/(Datos!$G304*8760)*Datos!$Y304*$F$86 ->  | D136: =Datos!$H304*Datos!$Y304*$F$86 ->  | E136: =Datos!$I304*Datos!$O304*$F$86 ->  | F136: =IFERROR(SUMIFS(Datos!D:D,Datos!$A:$A,$A136,Datos!$C:$C,$B136)*IF($A136=Datos!$D$24,$C136,IF($A136=Datos!$D$25,$D136,$E136)),"-") -> -
A137: 0 | B137: =Datos!C47 ->  | C137: =1/(Datos!$G305*8760)*Datos!$Y305*$F$86 ->  | D137: =Datos!$H305*Datos!$Y305*$F$86 ->  | E137: =Datos!$I305*Datos!$O305*$F$86 ->  | F137: =IFERROR(SUMIFS(Datos!D:D,Datos!$A:$A,$A137,Datos!$C:$C,$B137)*IF($A137=Datos!$D$24,$C137,IF($A137=Datos!$D$25,$D137,$E137)),"-") -> -
A138: 0 | B138: =Datos!C48 ->  | C138: =1/(Datos!$G306*8760)*Datos!$Y306*$F$86 ->  | D138: =Datos!$H306*Datos!$Y306*$F$86 ->  | E138: =Datos!$I306*Datos!$O306*$F$86 ->  | F138: =IFERROR(SUMIFS(Datos!D:D,Datos!$A:$A,$A138,Datos!$C:$C,$B138)*IF($A138=Datos!$D$24,$C138,IF($A138=Datos!$D$25,$D138,$E138)),"-") -> -
A139: 0 | B139: =Datos!C49 ->  | C139: =1/(Datos!$G307*8760)*Datos!$Y307*$F$86 ->  | D139: =Datos!$H307*Datos!$Y307*$F$86 ->  | E139: =Datos!$I307*Datos!$O307*$F$86 ->  | F139: =IFERROR(SUMIFS(Datos!D:D,Datos!$A:$A,$A139,Datos!$C:$C,$B139)*IF($A139=Datos!$D$24,$C139,IF($A139=Datos!$D$25,$D139,$E139)),"-") -> -
A140: Energia | B140: =Datos!C50 -> AP | C140: =1/(Datos!$G308*8760)*Datos!$Y308*$F$86 -> 0 | D140: =Datos!$H308*Datos!$Y308*$F$86 -> 0 | E140: =Datos!$I308*Datos!$O308*$F$86 -> 0 | F140: =IFERROR(SUMIFS(Datos!D:D,Datos!$A:$A,$A140,Datos!$C:$C,$B140)*IF($A140=Datos!$D$24,$C140,IF($A140=Datos!$D$25,$D140,$E140)),"-") -> 0
B141: Pérdida NT BT | F141: =SUM(F120:F120)*(F68-1) -> 19.68665806 | G141: =SUM(F120:F140)*(F68-1) -> 42.41239019
B142: Pérdida T BT | F142: =SUM(F120:F141)*(F69-1) -> 8.085870143
B143: Potencia BT coincidente con Máx MT | F143: =SUM(F120:F142) -> 372.8697429
A144: =Datos!D374 -> 0 | B144: =Datos!C51 ->  | C144: =1/(Datos!$G309*8760)*Datos!$Y309*$F$86 ->  | D144: =Datos!$H309*Datos!$Y309*$F$86 ->  | E144: =Datos!$I309*Datos!$O309*$F$86 ->  | F144: =IFERROR(SUMIFS(Datos!D:D,Datos!$A:$A,$A144,Datos!$C:$C,$B144)*IF($A144=Datos!$D$24,$C144,IF($A144=Datos!$D$25,$D144,$E144)),"-") -> -
A145: =Datos!D375 -> 0 | B145: =Datos!C52 ->  | C145: =1/(Datos!$G310*8760)*Datos!$Y310*$F$86 ->  | D145: =Datos!$H310*Datos!$Y310*$F$86 ->  | E145: =Datos!$I310*Datos!$O310*$F$86 ->  | F145: =IFERROR(SUMIFS(Datos!D:D,Datos!$A:$A,$A145,Datos!$C:$C,$B145)*IF($A145=Datos!$D$24,$C145,IF($A145=Datos!$D$25,$D145,$E145)),"-") -> -
A146: =Datos!D376 -> 0 | B146: =Datos!C53 ->  | C146: =1/(Datos!$G311*8760)*Datos!$Y311*$F$86 ->  | D146: =Datos!$H311*Datos!$Y311*$F$86 ->  | E146: =Datos!$I311*Datos!$O311*$F$86 ->  | F146: =IFERROR(SUMIFS(Datos!D:D,Datos!$A:$A,$A146,Datos!$C:$C,$B146)*IF($A146=Datos!$D$24,$C146,IF($A146=Datos!$D$25,$D146,$E146)),"-") -> -
A147: =Datos!D377 -> 0 | B147: =Datos!C54 ->  | C147: =1/(Datos!$G312*8760)*Datos!$Y312*$F$86 ->  | D147: =Datos!$H312*Datos!$Y312*$F$86 ->  | E147: =Datos!$I312*Datos!$O312*$F$86 ->  | F147: =IFERROR(SUMIFS(Datos!D:D,Datos!$A:$A,$A147,Datos!$C:$C,$B147)*IF($A147=Datos!$D$24,$C147,IF($A147=Datos!$D$25,$D147,$E147)),"-") -> -
A148: =Datos!D378 -> 0 | B148: =Datos!C55 ->  | C148: =1/(Datos!$G313*8760)*Datos!$Y313*$F$86 ->  | D148: =Datos!$H313*Datos!$Y313*$F$86 ->  | E148: =Datos!$I313*Datos!$O313*$F$86 ->  | F148: =IFERROR(SUMIFS(Datos!D:D,Datos!$A:$A,$A148,Datos!$C:$C,$B148)*IF($A148=Datos!$D$24,$C148,IF($A148=Datos!$D$25,$D148,$E148)),"-") -> -
A149: =Datos!D379 -> 0 | B149: =Datos!C56 ->  | C149: =1/(Datos!$G314*8760)*Datos!$Y314*$F$86 ->  | D149: =Datos!$H314*Datos!$Y314*$F$86 ->  | E149: =Datos!$I314*Datos!$O314*$F$86 ->  | F149: =IFERROR(SUMIFS(Datos!D:D,Datos!$A:$A,$A149,Datos!$C:$C,$B149)*IF($A149=Datos!$D$24,$C149,IF($A149=Datos!$D$25,$D149,$E149)),"-") -> -
A150: =Datos!D380 -> Energia | B150: =Datos!C57 -> MTD | C150: =1/(Datos!$G315*8760)*Datos!$Y315*$F$86 -> 0.0001601628147 | D150: =Datos!$H315*Datos!$Y315*$F$86 -> 0.7934236048 | E150: =Datos!$I315*Datos!$O315*$F$86 -> 0.8030415265 | F150: =IFERROR(SUMIFS(Datos!D:D,Datos!$A:$A,$A150,Datos!$C:$C,$B150)*IF($A150=Datos!$D$24,$C150,IF($A150=Datos!$D$25,$D150,$E150)),"-") -> 110.6278989
A151: =Datos!D381 -> Energia | B151: =Datos!C58 -> MTH | C151: =1/(Datos!$G316*8760)*Datos!$Y316*$F$86 -> 0.0001361547167 | D151: =Datos!$H316*Datos!$Y316*$F$86 -> 0.7444770841 | E151: =Datos!$I316*Datos!$O316*$F$86 -> 0.7879626979 | F151: =IFERROR(SUMIFS(Datos!D:D,Datos!$A:$A,$A151,Datos!$C:$C,$B151)*IF($A151=Datos!$D$24,$C151,IF($A151=Datos!$D$25,$D151,$E151)),"-") -> 20.92271737
A152: =Datos!D382 -> 0 | B152: =Datos!C59 -> AMTD | C152: =1/(Datos!$G317*8760)*Datos!$Y317*$F$86 ->  | D152: =Datos!$H317*Datos!$Y317*$F$86 ->  | E152: =Datos!$I317*Datos!$O317*$F$86 ->  | F152: =IFERROR(SUMIFS(Datos!D:D,Datos!$A:$A,$A152,Datos!$C:$C,$B152)*IF($A152=Datos!$D$24,$C152,IF($A152=Datos!$D$25,$D152,$E152)),"-") -> -
A153: =Datos!D383 -> 0 | B153: =Datos!C60 ->  | C153: =1/(Datos!$G318*8760)*Datos!$Y318*$F$86 ->  | D153: =Datos!$H318*Datos!$Y318*$F$86 ->  | E153: =Datos!$I318*Datos!$O318*$F$86 ->  | F153: =IFERROR(SUMIFS(Datos!D:D,Datos!$A:$A,$A153,Datos!$C:$C,$B153)*IF($A153=Datos!$D$24,$C153,IF($A153=Datos!$D$25,$D153,$E153)),"-") -> -
A154: =Datos!D384 -> 0 | B154: =Datos!C61 ->  | C154: =1/(Datos!$G319*8760)*Datos!$Y319*$F$86 ->  | D154: =Datos!$H319*Datos!$Y319*$F$86 ->  | E154: =Datos!$I319*Datos!$O319*$F$86 ->  | F154: =IFERROR(SUMIFS(Datos!D:D,Datos!$A:$A,$A154,Datos!$C:$C,$B154)*IF($A154=Datos!$D$24,$C154,IF($A154=Datos!$D$25,$D154,$E154)),"-") -> -
A155: =Datos!D385 -> 0 | B155: =Datos!C62 ->  | C155: =1/(Datos!$G320*8760)*Datos!$Y320*$F$86 ->  | D155: =Datos!$H320*Datos!$Y320*$F$86 ->  | E155: =Datos!$I320*Datos!$O320*$F$86 ->  | F155: =IFERROR(SUMIFS(Datos!D:D,Datos!$A:$A,$A155,Datos!$C:$C,$B155)*IF($A155=Datos!$D$24,$C155,IF($A155=Datos!$D$25,$D155,$E155)),"-") -> -
A156: =Datos!D386 -> 0 | B156: =Datos!C63 ->  | C156: =1/(Datos!$G321*8760)*Datos!$Y321*$F$86 ->  | D156: =Datos!$H321*Datos!$Y321*$F$86 ->  | E156: =Datos!$I321*Datos!$O321*$F$86 ->  | F156: =IFERROR(SUMIFS(Datos!D:D,Datos!$A:$A,$A156,Datos!$C:$C,$B156)*IF($A156=Datos!$D$24,$C156,IF($A156=Datos!$D$25,$D156,$E156)),"-") -> -
A157: =Datos!D387 -> 0 | B157: =Datos!C64 ->  | C157: =1/(Datos!$G322*8760)*Datos!$Y322*$F$86 ->  | D157: =Datos!$H322*Datos!$Y322*$F$86 ->  | E157: =Datos!$I322*Datos!$O322*$F$86 ->  | F157: =IFERROR(SUMIFS(Datos!D:D,Datos!$A:$A,$A157,Datos!$C:$C,$B157)*IF($A157=Datos!$D$24,$C157,IF($A157=Datos!$D$25,$D157,$E157)),"-") -> -
A158: =Datos!D388 -> 0 | B158: =Datos!C65 ->  | C158: =1/(Datos!$G323*8760)*Datos!$Y323*$F$86 ->  | D158: =Datos!$H323*Datos!$Y323*$F$86 ->  | E158: =Datos!$I323*Datos!$O323*$F$86 ->  | F158: =IFERROR(SUMIFS(Datos!D:D,Datos!$A:$A,$A158,Datos!$C:$C,$B158)*IF($A158=Datos!$D$24,$C158,IF($A158=Datos!$D$25,$D158,$E158)),"-") -> -
A159: =Datos!D389 -> 0 | B159: =Datos!C66 ->  | C159: =1/(Datos!$G324*8760)*Datos!$Y324*$F$86 ->  | D159: =Datos!$H324*Datos!$Y324*$F$86 ->  | E159: =Datos!$I324*Datos!$O324*$F$86 ->  | F159: =IFERROR(SUMIFS(Datos!D:D,Datos!$A:$A,$A159,Datos!$C:$C,$B159)*IF($A159=Datos!$D$24,$C159,IF($A159=Datos!$D$25,$D159,$E159)),"-") -> -
A160: =Datos!D390 -> 0 | B160: =Datos!C67 ->  | C160: =1/(Datos!$G325*8760)*Datos!$Y325*$F$86 ->  | D160: =Datos!$H325*Datos!$Y325*$F$86 ->  | E160: =Datos!$I325*Datos!$O325*$F$86 ->  | F160: =IFERROR(SUMIFS(Datos!D:D,Datos!$A:$A,$A160,Datos!$C:$C,$B160)*IF($A160=Datos!$D$24,$C160,IF($A160=Datos!$D$25,$D160,$E160)),"-") -> -
A161: =Datos!D391 -> 0 | B161: =Datos!C68 ->  | C161: =1/(Datos!$G326*8760)*Datos!$Y326*$F$86 ->  | D161: =Datos!$H326*Datos!$Y326*$F$86 ->  | E161: =Datos!$I326*Datos!$O326*$F$86 ->  | F161: =IFERROR(SUMIFS(Datos!D:D,Datos!$A:$A,$A161,Datos!$C:$C,$B161)*IF($A161=Datos!$D$24,$C161,IF($A161=Datos!$D$25,$D161,$E161)),"-") -> -
A162: =Datos!D392 -> 0 | B162: =Datos!C69 ->  | C162: =1/(Datos!$G327*8760)*Datos!$Y327*$F$86 ->  | D162: =Datos!$H327*Datos!$Y327*$F$86 ->  | E162: =Datos!$I327*Datos!$O327*$F$86 ->  | F162: =IFERROR(SUMIFS(Datos!D:D,Datos!$A:$A,$A162,Datos!$C:$C,$B162)*IF($A162=Datos!$D$24,$C162,IF($A162=Datos!$D$25,$D162,$E162)),"-") -> -
A163: =Datos!D393 -> 0 | B163: =Datos!C70 ->  | C163: =1/(Datos!$G328*8760)*Datos!$Y328*$F$86 ->  | D163: =Datos!$H328*Datos!$Y328*$F$86 ->  | E163: =Datos!$I328*Datos!$O328*$F$86 ->  | F163: =IFERROR(SUMIFS(Datos!D:D,Datos!$A:$A,$A163,Datos!$C:$C,$B163)*IF($A163=Datos!$D$24,$C163,IF($A163=Datos!$D$25,$D163,$E163)),"-") -> -
B164: Pérdida MT | F164: =SUM(F143:F163)*(F70-1) -> 25.45327312
B165: Potencia Máxima MT | F165: =SUM(F143:F164) -> 529.8736323
C167: Coeficientes de responsabilidad (Tipo de medición) | F167: Potencia coincidente con máxima AT
C168: Energía | D168: Potencia máxima | E168: Potencia por franja horaria
A169: =A93 -> Energia | B169: =Datos!C30 -> BTS_R | C169: =1/(Datos!$G288*8760)*Datos!$Z288*$F$86 -> 0.0001085890068 | D169: =Datos!$H288*Datos!$Z288*$F$86 -> 0.344689941 | E169: =Datos!$I288*Datos!$P288*$F$86 -> 0.4600094561 | F169: =IFERROR(SUMIFS(Datos!D:D,Datos!$A:$A,$A169,Datos!$C:$C,$B169)*IF($A169=Datos!$D$24,$C169,IF($A169=Datos!$D$25,$D169,$E169)),"-") -> 160.1845789
A170: Energia | B170: =Datos!C31 -> BTS_O | C170: =1/(Datos!$G289*8760)*Datos!$Z289*$F$86 -> 0.0001852025304 | D170: =Datos!$H289*Datos!$Z289*$F$86 -> 0.5460873462 | E170: =Datos!$I289*Datos!$P289*$F$86 -> 0.6091129837 | F170: =IFERROR(SUMIFS(Datos!D:D,Datos!$A:$A,$A170,Datos!$C:$C,$B170)*IF($A170=Datos!$D$24,$C170,IF($A170=Datos!$D$25,$D170,$E170)),"-") -> 55.85801941
A171: Energia | B171: =Datos!C32 -> BTD | C171: =1/(Datos!$G290*8760)*Datos!$Z290*$F$86 -> 0.0002029211941 | D171: =Datos!$H290*Datos!$Z290*$F$86 -> 0.7353419273 | E171: =Datos!$I290*Datos!$P290*$F$86 -> 0.7565711349 | F171: =IFERROR(SUMIFS(Datos!D:D,Datos!$A:$A,$A171,Datos!$C:$C,$B171)*IF($A171=Datos!$D$24,$C171,IF($A171=Datos!$D$25,$D171,$E171)),"-") -> 127.9341277
A172: Energia | B172: =Datos!C33 -> BTH | C172: =1/(Datos!$G291*8760)*Datos!$Z291*$F$86 -> 0.0001283715897 | D172: =Datos!$H291*Datos!$Z291*$F$86 -> 0.552322486 | E172: =Datos!$I291*Datos!$P291*$F$86 -> 0.7608200456 | F172: =IFERROR(SUMIFS(Datos!D:D,Datos!$A:$A,$A172,Datos!$C:$C,$B172)*IF($A172=Datos!$D$24,$C172,IF($A172=Datos!$D$25,$D172,$E172)),"-") -> 1.120488725
A173: 0 | B173: =Datos!C34 -> ABTD | C173: =1/(Datos!$G292*8760)*Datos!$Z292*$F$86 ->  | D173: =Datos!$H292*Datos!$Z292*$F$86 ->  | E173: =Datos!$I292*Datos!$P292*$F$86 ->  | F173: =IFERROR(SUMIFS(Datos!D:D,Datos!$A:$A,$A173,Datos!$C:$C,$B173)*IF($A173=Datos!$D$24,$C173,IF($A173=Datos!$D$25,$D173,$E173)),"-") -> -
A174: 0 | B174: =Datos!C35 ->  | C174: =1/(Datos!$G293*8760)*Datos!$Z293*$F$86 ->  | D174: =Datos!$H293*Datos!$Z293*$F$86 ->  | E174: =Datos!$I293*Datos!$P293*$F$86 ->  | F174: =IFERROR(SUMIFS(Datos!D:D,Datos!$A:$A,$A174,Datos!$C:$C,$B174)*IF($A174=Datos!$D$24,$C174,IF($A174=Datos!$D$25,$D174,$E174)),"-") -> -
A175: 0 | B175: =Datos!C36 ->  | C175: =1/(Datos!$G294*8760)*Datos!$Z294*$F$86 ->  | D175: =Datos!$H294*Datos!$Z294*$F$86 ->  | E175: =Datos!$I294*Datos!$P294*$F$86 ->  | F175: =IFERROR(SUMIFS(Datos!D:D,Datos!$A:$A,$A175,Datos!$C:$C,$B175)*IF($A175=Datos!$D$24,$C175,IF($A175=Datos!$D$25,$D175,$E175)),"-") -> -
A176: 0 | B176: =Datos!C37 ->  | C176: =1/(Datos!$G295*8760)*Datos!$Z295*$F$86 ->  | D176: =Datos!$H295*Datos!$Z295*$F$86 ->  | E176: =Datos!$I295*Datos!$P295*$F$86 ->  | F176: =IFERROR(SUMIFS(Datos!D:D,Datos!$A:$A,$A176,Datos!$C:$C,$B176)*IF($A176=Datos!$D$24,$C176,IF($A176=Datos!$D$25,$D176,$E176)),"-") -> -
A177: 0 | B177: =Datos!C38 ->  | C177: =1/(Datos!$G296*8760)*Datos!$Z296*$F$86 ->  | D177: =Datos!$H296*Datos!$Z296*$F$86 ->  | E177: =Datos!$I296*Datos!$P296*$F$86 ->  | F177: =IFERROR(SUMIFS(Datos!D:D,Datos!$A:$A,$A177,Datos!$C:$C,$B177)*IF($A177=Datos!$D$24,$C177,IF($A177=Datos!$D$25,$D177,$E177)),"-") -> -
A178: 0 | B178: =Datos!C39 ->  | C178: =1/(Datos!$G297*8760)*Datos!$Z297*$F$86 ->  | D178: =Datos!$H297*Datos!$Z297*$F$86 ->  | E178: =Datos!$I297*Datos!$P297*$F$86 ->  | F178: =IFERROR(SUMIFS(Datos!D:D,Datos!$A:$A,$A178,Datos!$C:$C,$B178)*IF($A178=Datos!$D$24,$C178,IF($A178=Datos!$D$25,$D178,$E178)),"-") -> -
A179: 0 | B179: =Datos!C40 ->  | C179: =1/(Datos!$G298*8760)*Datos!$Z298*$F$86 ->  | D179: =Datos!$H298*Datos!$Z298*$F$86 ->  | E179: =Datos!$I298*Datos!$P298*$F$86 ->  | F179: =IFERROR(SUMIFS(Datos!D:D,Datos!$A:$A,$A179,Datos!$C:$C,$B179)*IF($A179=Datos!$D$24,$C179,IF($A179=Datos!$D$25,$D179,$E179)),"-") -> -
A180: 0 | B180: =Datos!C41 ->  | C180: =1/(Datos!$G299*8760)*Datos!$Z299*$F$86 ->  | D180: =Datos!$H299*Datos!$Z299*$F$86 ->  | E180: =Datos!$I299*Datos!$P299*$F$86 ->  | F180: =IFERROR(SUMIFS(Datos!D:D,Datos!$A:$A,$A180,Datos!$C:$C,$B180)*IF($A180=Datos!$D$24,$C180,IF($A180=Datos!$D$25,$D180,$E180)),"-") -> -
A181: 0 | B181: =Datos!C42 ->  | C181: =1/(Datos!$G300*8760)*Datos!$Z300*$F$86 ->  | D181: =Datos!$H300*Datos!$Z300*$F$86 ->  | E181: =Datos!$I300*Datos!$P300*$F$86 ->  | F181: =IFERROR(SUMIFS(Datos!D:D,Datos!$A:$A,$A181,Datos!$C:$C,$B181)*IF($A181=Datos!$D$24,$C181,IF($A181=Datos!$D$25,$D181,$E181)),"-") -> -
A182: 0 | B182: =Datos!C43 ->  | C182: =1/(Datos!$G301*8760)*Datos!$Z301*$F$86 ->  | D182: =Datos!$H301*Datos!$Z301*$F$86 ->  | E182: =Datos!$I301*Datos!$P301*$F$86 ->  | F182: =IFERROR(SUMIFS(Datos!D:D,Datos!$A:$A,$A182,Datos!$C:$C,$B182)*IF($A182=Datos!$D$24,$C182,IF($A182=Datos!$D$25,$D182,$E182)),"-") -> -
A183: 0 | B183: =Datos!C44 ->  | C183: =1/(Datos!$G302*8760)*Datos!$Z302*$F$86 ->  | D183: =Datos!$H302*Datos!$Z302*$F$86 ->  | E183: =Datos!$I302*Datos!$P302*$F$86 ->  | F183: =IFERROR(SUMIFS(Datos!D:D,Datos!$A:$A,$A183,Datos!$C:$C,$B183)*IF($A183=Datos!$D$24,$C183,IF($A183=Datos!$D$25,$D183,$E183)),"-") -> -
A184: 0 | B184: =Datos!C45 ->  | C184: =1/(Datos!$G303*8760)*Datos!$Z303*$F$86 ->  | D184: =Datos!$H303*Datos!$Z303*$F$86 ->  | E184: =Datos!$I303*Datos!$P303*$F$86 ->  | F184: =IFERROR(SUMIFS(Datos!D:D,Datos!$A:$A,$A184,Datos!$C:$C,$B184)*IF($A184=Datos!$D$24,$C184,IF($A184=Datos!$D$25,$D184,$E184)),"-") -> -
A185: 0 | B185: =Datos!C46 ->  | C185: =1/(Datos!$G304*8760)*Datos!$Z304*$F$86 ->  | D185: =Datos!$H304*Datos!$Z304*$F$86 ->  | E185: =Datos!$I304*Datos!$P304*$F$86 ->  | F185: =IFERROR(SUMIFS(Datos!D:D,Datos!$A:$A,$A185,Datos!$C:$C,$B185)*IF($A185=Datos!$D$24,$C185,IF($A185=Datos!$D$25,$D185,$E185)),"-") -> -
A186: 0 | B186: =Datos!C47 ->  | C186: =1/(Datos!$G305*8760)*Datos!$Z305*$F$86 ->  | D186: =Datos!$H305*Datos!$Z305*$F$86 ->  | E186: =Datos!$I305*Datos!$P305*$F$86 ->  | F186: =IFERROR(SUMIFS(Datos!D:D,Datos!$A:$A,$A186,Datos!$C:$C,$B186)*IF($A186=Datos!$D$24,$C186,IF($A186=Datos!$D$25,$D186,$E186)),"-") -> -
A187: 0 | B187: =Datos!C48 ->  | C187: =1/(Datos!$G306*8760)*Datos!$Z306*$F$86 ->  | D187: =Datos!$H306*Datos!$Z306*$F$86 ->  | E187: =Datos!$I306*Datos!$P306*$F$86 ->  | F187: =IFERROR(SUMIFS(Datos!D:D,Datos!$A:$A,$A187,Datos!$C:$C,$B187)*IF($A187=Datos!$D$24,$C187,IF($A187=Datos!$D$25,$D187,$E187)),"-") -> -
A188: 0 | B188: =Datos!C49 ->  | C188: =1/(Datos!$G307*8760)*Datos!$Z307*$F$86 ->  | D188: =Datos!$H307*Datos!$Z307*$F$86 ->  | E188: =Datos!$I307*Datos!$P307*$F$86 ->  | F188: =IFERROR(SUMIFS(Datos!D:D,Datos!$A:$A,$A188,Datos!$C:$C,$B188)*IF($A188=Datos!$D$24,$C188,IF($A188=Datos!$D$25,$D188,$E188)),"-") -> -
A189: Energia | B189: =Datos!C50 -> AP | C189: =1/(Datos!$G308*8760)*Datos!$Z308*$F$86 -> 0 | D189: =Datos!$H308*Datos!$Z308*$F$86 -> 0 | E189: =Datos!$I308*Datos!$P308*$F$86 -> 0 | F189: =IFERROR(SUMIFS(Datos!D:D,Datos!$A:$A,$A189,Datos!$C:$C,$B189)*IF($A189=Datos!$D$24,$C189,IF($A189=Datos!$D$25,$D189,$E189)),"-") -> 0
B190: Pérdida NT BT | F190: =SUM(F169:F169)*(F68-1) -> 19.68665806 | G190: =SUM(F169:F189)*(F68-1) -> 42.41239019
B191: Pérdida T BT | F191: =SUM(F169:F190)*(F69-1) -> 8.085870143
B192: Potencia BT coincidente con Máx AT | F192: =SUM(F169:F191) -> 372.8697429
A193: =A144 -> 0 | B193: =Datos!C51 ->  | C193: =1/(Datos!$G309*8760)*Datos!$Z309*$F$86 ->  | D193: =Datos!$H309*Datos!$Z309*$F$86 ->  | E193: =Datos!$I309*Datos!$P309*$F$86 ->  | F193: =IFERROR(SUMIFS(Datos!D:D,Datos!$A:$A,$A193,Datos!$C:$C,$B193)*IF($A193=Datos!$D$24,$C193,IF($A193=Datos!$D$25,$D193,$E193)),"-") -> -
A194: 0 | B194: =Datos!C52 ->  | C194: =1/(Datos!$G310*8760)*Datos!$Z310*$F$86 ->  | D194: =Datos!$H310*Datos!$Z310*$F$86 ->  | E194: =Datos!$I310*Datos!$P310*$F$86 ->  | F194: =IFERROR(SUMIFS(Datos!D:D,Datos!$A:$A,$A194,Datos!$C:$C,$B194)*IF($A194=Datos!$D$24,$C194,IF($A194=Datos!$D$25,$D194,$E194)),"-") -> -
A195: 0 | B195: =Datos!C53 ->  | C195: =1/(Datos!$G311*8760)*Datos!$Z311*$F$86 ->  | D195: =Datos!$H311*Datos!$Z311*$F$86 ->  | E195: =Datos!$I311*Datos!$P311*$F$86 ->  | F195: =IFERROR(SUMIFS(Datos!D:D,Datos!$A:$A,$A195,Datos!$C:$C,$B195)*IF($A195=Datos!$D$24,$C195,IF($A195=Datos!$D$25,$D195,$E195)),"-") -> -
A196: 0 | B196: =Datos!C54 ->  | C196: =1/(Datos!$G312*8760)*Datos!$Z312*$F$86 ->  | D196: =Datos!$H312*Datos!$Z312*$F$86 ->  | E196: =Datos!$I312*Datos!$P312*$F$86 ->  | F196: =IFERROR(SUMIFS(Datos!D:D,Datos!$A:$A,$A196,Datos!$C:$C,$B196)*IF($A196=Datos!$D$24,$C196,IF($A196=Datos!$D$25,$D196,$E196)),"-") -> -
A197: 0 | B197: =Datos!C55 ->  | C197: =1/(Datos!$G313*8760)*Datos!$Z313*$F$86 ->  | D197: =Datos!$H313*Datos!$Z313*$F$86 ->  | E197: =Datos!$I313*Datos!$P313*$F$86 ->  | F197: =IFERROR(SUMIFS(Datos!D:D,Datos!$A:$A,$A197,Datos!$C:$C,$B197)*IF($A197=Datos!$D$24,$C197,IF($A197=Datos!$D$25,$D197,$E197)),"-") -> -
A198: 0 | B198: =Datos!C56 ->  | C198: =1/(Datos!$G314*8760)*Datos!$Z314*$F$86 ->  | D198: =Datos!$H314*Datos!$Z314*$F$86 ->  | E198: =Datos!$I314*Datos!$P314*$F$86 ->  | F198: =IFERROR(SUMIFS(Datos!D:D,Datos!$A:$A,$A198,Datos!$C:$C,$B198)*IF($A198=Datos!$D$24,$C198,IF($A198=Datos!$D$25,$D198,$E198)),"-") -> -
A199: Energia | B199: =Datos!C57 -> MTD | C199: =1/(Datos!$G315*8760)*Datos!$Z315*$F$86 -> 0.0001601628147 | D199: =Datos!$H315*Datos!$Z315*$F$86 -> 0.7934236048 | E199: =Datos!$I315*Datos!$P315*$F$86 -> 0.8030415265 | F199: =IFERROR(SUMIFS(Datos!D:D,Datos!$A:$A,$A199,Datos!$C:$C,$B199)*IF($A199=Datos!$D$24,$C199,IF($A199=Datos!$D$25,$D199,$E199)),"-") -> 110.6278989
A200: Energia | B200: =Datos!C58 -> MTH | C200: =1/(Datos!$G316*8760)*Datos!$Z316*$F$86 -> 0.0001361547167 | D200: =Datos!$H316*Datos!$Z316*$F$86 -> 0.7444770841 | E200: =Datos!$I316*Datos!$P316*$F$86 -> 0.7879626979 | F200: =IFERROR(SUMIFS(Datos!D:D,Datos!$A:$A,$A200,Datos!$C:$C,$B200)*IF($A200=Datos!$D$24,$C200,IF($A200=Datos!$D$25,$D200,$E200)),"-") -> 20.92271737
A201: 0 | B201: =Datos!C59 -> AMTD | C201: =1/(Datos!$G317*8760)*Datos!$Z317*$F$86 ->  | D201: =Datos!$H317*Datos!$Z317*$F$86 ->  | E201: =Datos!$I317*Datos!$P317*$F$86 ->  | F201: =IFERROR(SUMIFS(Datos!D:D,Datos!$A:$A,$A201,Datos!$C:$C,$B201)*IF($A201=Datos!$D$24,$C201,IF($A201=Datos!$D$25,$D201,$E201)),"-") -> -
A202: 0 | B202: =Datos!C60 ->  | C202: =1/(Datos!$G318*8760)*Datos!$Z318*$F$86 ->  | D202: =Datos!$H318*Datos!$Z318*$F$86 ->  | E202: =Datos!$I318*Datos!$P318*$F$86 ->  | F202: =IFERROR(SUMIFS(Datos!D:D,Datos!$A:$A,$A202,Datos!$C:$C,$B202)*IF($A202=Datos!$D$24,$C202,IF($A202=Datos!$D$25,$D202,$E202)),"-") -> -
A203: 0 | B203: =Datos!C61 ->  | C203: =1/(Datos!$G319*8760)*Datos!$Z319*$F$86 ->  | D203: =Datos!$H319*Datos!$Z319*$F$86 ->  | E203: =Datos!$I319*Datos!$P319*$F$86 ->  | F203: =IFERROR(SUMIFS(Datos!D:D,Datos!$A:$A,$A203,Datos!$C:$C,$B203)*IF($A203=Datos!$D$24,$C203,IF($A203=Datos!$D$25,$D203,$E203)),"-") -> -
A204: 0 | B204: =Datos!C62 ->  | C204: =1/(Datos!$G320*8760)*Datos!$Z320*$F$86 ->  | D204: =Datos!$H320*Datos!$Z320*$F$86 ->  | E204: =Datos!$I320*Datos!$P320*$F$86 ->  | F204: =IFERROR(SUMIFS(Datos!D:D,Datos!$A:$A,$A204,Datos!$C:$C,$B204)*IF($A204=Datos!$D$24,$C204,IF($A204=Datos!$D$25,$D204,$E204)),"-") -> -
A205: 0 | B205: =Datos!C63 ->  | C205: =1/(Datos!$G321*8760)*Datos!$Z321*$F$86 ->  | D205: =Datos!$H321*Datos!$Z321*$F$86 ->  | E205: =Datos!$I321*Datos!$P321*$F$86 ->  | F205: =IFERROR(SUMIFS(Datos!D:D,Datos!$A:$A,$A205,Datos!$C:$C,$B205)*IF($A205=Datos!$D$24,$C205,IF($A205=Datos!$D$25,$D205,$E205)),"-") -> -
A206: 0 | B206: =Datos!C64 ->  | C206: =1/(Datos!$G322*8760)*Datos!$Z322*$F$86 ->  | D206: =Datos!$H322*Datos!$Z322*$F$86 ->  | E206: =Datos!$I322*Datos!$P322*$F$86 ->  | F206: =IFERROR(SUMIFS(Datos!D:D,Datos!$A:$A,$A206,Datos!$C:$C,$B206)*IF($A206=Datos!$D$24,$C206,IF($A206=Datos!$D$25,$D206,$E206)),"-") -> -
A207: 0 | B207: =Datos!C65 ->  | C207: =1/(Datos!$G323*8760)*Datos!$Z323*$F$86 ->  | D207: =Datos!$H323*Datos!$Z323*$F$86 ->  | E207: =Datos!$I323*Datos!$P323*$F$86 ->  | F207: =IFERROR(SUMIFS(Datos!D:D,Datos!$A:$A,$A207,Datos!$C:$C,$B207)*IF($A207=Datos!$D$24,$C207,IF($A207=Datos!$D$25,$D207,$E207)),"-") -> -
A208: 0 | B208: =Datos!C66 ->  | C208: =1/(Datos!$G324*8760)*Datos!$Z324*$F$86 ->  | D208: =Datos!$H324*Datos!$Z324*$F$86 ->  | E208: =Datos!$I324*Datos!$P324*$F$86 ->  | F208: =IFERROR(SUMIFS(Datos!D:D,Datos!$A:$A,$A208,Datos!$C:$C,$B208)*IF($A208=Datos!$D$24,$C208,IF($A208=Datos!$D$25,$D208,$E208)),"-") -> -
... 178 more rows
